Workbook

Sheet uzasadnienie dochody
A1: Zmiany w środkach przeznaczonych do dyspozycji Dzielnicy w 2024 r. na realizację inwestycji i zadań własnych, w tym:
C3: zmniejszenia | D3: zwiększenia
A4: 1. Dochody bieżące | C4: =SUM(C6:C8) -> 0 | D4: =SUM(D6:D8) -> 0
A5: w tym:
A6: • Wpływy z opłat pobieranych na podstawie odrębnych ustaw | C6: =C36 -> 0 | D6: =D36 -> 0
A7: • Dochody z mienia | C7: =C51 -> 0 | D7: =D51 -> 0
A8: • Pozostałe dochody | C8: =C77 -> 0 | D8: =D77 -> 0
A9: 2. Dochody majątkowe z terenu Dzielnicy | C9: =C92 -> 0 | D9: =D92 -> 0
A10: 1. Dodatkowe środki finansowe przekazane do dyspozycji Dzielnicy | C10: =C119 -> 278864 | D10: =D119 -> 38350
A11: Razem DOCHODY DZIELNICY ŚRÓDMIEŚCIE | C11: =C4+C9+C10 -> 278864 | D11: =D4+D9+D10 -> 38350
A13: DOCHODY BIEŻĄCE | C13: =C15+C51+C77+C36 -> 0 | D13: =D15+D51+D77+D36 -> 0
A15: Podatki i opłaty lokalne ogółem | C15: =C18 -> 0 | D15: =D18 -> 0
A17: w tym:
A18: • podatek od nieruchomości | C18: =SUM(C23:C25) -> 0 | D18: 0
A19: • podatek od środków transportowych | D19: 0
A20: • opłata targowa | D20: 0
A23: • od osób prawnych
A25: • od osób fizycznych
A29: Podstawy prawne:
A30: - Ustawa z dnia 12.01.1991 r. o podatkach i opłatach lokalnych (tj.. Dz.U. z 2006 r. Nr 121, poz.844 z późn. zm.).
A31: - corocznie uchwalana Uchwała Rady m.st. Warszawy w przedmiotowej sprawie
A33: Klasyfikacja: rozdział: 75615, 75616
A36: Wpływy z opłat pobieranych na podstawie odrębnych ustaw | C36: =C40 -> 0 | D36: =D40 -> 0
A38: w tym:
A40: opłaty za zajęcie pasa drogowego | D40: 0
A44: Podstawy prawne:
A45: - Ustawa z dnia 21 marca 1985 r. o drogach publicznych
A46: - Rozporządzenie Rady Ministrów z dnia czerwca 2004 r. w sprawie określenia warunków udzielania zezwoleń za zajęcie pasa drogowego
A47: - Uchwała nr XLVII/1191/2005 Rady m.st. Warszawy z dnia 17 marca 2005 r w sprawie wysokości stawek opłat za zajęcie pasa drogowego dróg publicznych na obszarze m.st Warszawy z wyjątkiem autostrad i dróg ekspresowych.
A49: Klasyfikacja: rozdział: 75618
A51: Dochody z mienia (100%) | C51: =C56+C59 -> 0 | D51: =D56+D59+D57 -> 0
A53: w tym:
A55: opłaty za zarząd, użytkowanie i użytkowanie wieczyste nieruchomości | C55: 0
A56: opłaty za trwały zarząd, użytkowanie i służebności (służebność przesyłu) | C56: 0
A57: pierwsza opłata za użytkowanie wieczyste gruntu
A59: dochody z najmu i dzierżawy mienia | C59: =SUM(C60:C67) -> 0 | D59: =SUM(D60:D67) -> 0
A60: wpływy z czynszu za mieszkania komunalne
A62: wpływy z najmu lokali użytkowych
A64: wpływy z najmu garaży
A65: wpływy z dzierżawy gruntów
A66: wpływy z najmu powierzchni pod reklamy
A67: pozostałe dochody z najmu i dzierżawy | C67: 0
A69: Zwiększenie dochodów z mienia zostało oszacowane na podstawie kwot wykonanych i przewidywanych. 70% dochodów z mienia będących w dyspozycji Dzielnicy, t.j.1.277.377 zł przenacza się na wydatki bieżące oświatowe. Zgodnie z ustaleniami z Biurem Edukacji pokrycie braków w planie na dotacje dla niepublicznych placówek oświatowych traktowane jest jak zwrot środków pożyczonych Dzielnicy na remont placówek w styczniu bieżącego roku.
A71: Podstawa prawna:
A72: Ustawa z dnia 21 sierpnia 1997 r. o gospodarce nieruchomościami (t.j.Dz.U. z 2004 r. Nr 261, poz. 2603 ze zm.)
A77: Pozostałe dochody ogółem | C77: =SUM(C78:C90) -> 0 | D77: =SUM(D80:D89) -> 0
A79: w tym:
A80: mandaty i kary pieniężne | C80: 0
A81: wpływy z różnych opłat (z tytułu kosztów upomnień, czynności egzekucyjnych) | C81: 0
A82: odsetki od nieterminowych płatności podatków | C82: 0
A83: pozostałe odsetki (odsetki od nieterminowych opłat za użytkowanie wieczyste i przekształcenie użytkowania) | C83: 0
A84: odsetki od dotacji pobranych w nadmiernej wysokości | C84: 0
A85: wpływy z usług (odpłatność za zajęcia opiekuńcze w czasie trwania akcji "Zima w mieście" i "Lato w mieście") | C85: 0
A86: wpływy z różnych dochodów | C86: 0
A87: wpływy do budżetu nadwyżki środków obrotowych zakładów budżetowych | C87: 0
A88: wpływy z tytułu zwrotu podatku VAT | C88: 0
A89: zwroty dotacji | C89: 0
A90: Zmiany dochodów z mienia zostały oszacowane na podstawie kwot wykonanych i przewidywanych. Środki w kwocie 1.299.189 zł zostaną przeznaczone na oświatowe wydatki bieżące, w tym 685.346 zł na pokrycie braków w planie na dotacje dla niepublicznych placówek oświatowych. Zgodnie z ustaleniami z Biurem Edukacji zwiększenie na dotacje traktowane jest jak zwrot środków pożyczonych Dzielnicy na remont placówek w styczniu bieżącego.
A92: DOCHODY MAJĄTKOWE | C92: =C109 -> 0 | D92: =D100+D109 -> 0
A94: w tym:
A95: • Wpływy z przekształcenia prawa użytkowania wieczystego w prawo własności | C95: 0
A96: • Wpływy ze sprzedaży lokali i nieruchomości | C96: 0
A100: Wpływy z przekształcenia prawa użytkowania wieczystego w prawo własności (100%) | C100: =C102+C104 -> 0 | D100: =SUM(D102:D105) -> 0
A102: wpływy z rocznej opłaty przekształceniowej | C102: 0
A104: wpływy z opłaty jednorazowej za przekształcenie użytkowania wieczystego w prawo własności | C104: 0
A105: wpływy z opłaty za przekształcenie użytkowania wieczystego w prawo własności
A108: Zwiększenie planu dochodów majątkowych wynika ze zrealizowanych wpływów. 70% dochodów będących w dyspozycji Dzielnicy, t.j. 1.056.538 zł przenacza się na pokrycie braków w planie na dotacje dla niepublicznych placówek oświatowych - 356.538 zł oraz na dotację przedmiotową dla Ośrodka Sportu i Rekreacji - 700.000 zł .
A109: Wpływy ze sprzedaży lokali i nieruchomości (100%) | C109: =SUM(C111:C118) -> 0 | D109: =SUM(D111:D118) -> 0
A111: w tym:
A112: wpływy ze sprzedaży lokali użytkowych (raty za lokale użytkowe sprzedane w latach poprzednich - 514.514 zł i sprzedaż lokalu użytkowego w 2024 r. przy ul. Przemysłowej 36 - 386.000 zł). | C112: 0
A113: wpływy ze sprzedaży lokali mieszkalnych (Noakowskiego 10/26 - 2.120.788 zł, Noakowskiego 12/11 - 5.189.481 zł, Al. Jerozolimskie 49/33 - 1.974.803 zł, Smolna 16/4 - 2.500.000 zł - 100% kwot uzyskanych w przetargach). | C113: 0
A114: wpływy ze sprzedaży nieruchomości gruntowej przy ul. Tamka 49 | C114: 0
A115: Dochody majątkowe w wysokości 70% przynależnych Dzielnicy zostaną przeznaczone na zwrot części środków otrzymanych z Biura Edukacji na remonty placówek oświatowych w 2024 r. – 3.680.739 zł i koszty utrzymania lokali położonych we wspólnotach mieszkaniowych - 8.650.434 zł.
A119: DODATKOWE ŚRODKI FINANSOWE | C119: =C121 -> 278864 | D119: =D121 -> 38350
A121: DODATKOWE ŚRODKI FINANSOWE PRZEKAZANE DO DYSPOZYCJI DZIELNICY | C121: =SUM(C123:C123) -> 278864 | D121: =D124 -> 38350
A123: Zwrot nadwyżki środków otrzymanych z Biura Infrastruktury na realizację zadania inwestycyjnego "Panele fotowoltaiczne na budynku Zespołu Szkół Architektoniczno-Budowlanych i Licealnych przy ul. Przyrynek 9". | C123: 278864 | D123: 0
A124: Zwiększenie środków z Biura Sportu i Rekreacji na zakupy inwestycyjne dla Ośrodka Sportu i Rekreacji. | C124: 0 | D124: 38350
A126: OGÓŁEM DOCHODY | C126: =C121+C13+C92 -> 278864 | D126: =D121+D13+D92 -> 38350

Sheet uzasadnienie wydatki
B2: DZIELNICA ŚRÓDMIEŚCIE
B4: Wyszczególnienie | C4: Zmniejszenia | D4: Zwiększenia
E5: =IF(C$6+D$6>0,"tak","nie") -> tak
A6: Wynik całkowity | B6: RAZEM DZIELNICA ŚRÓDMIEŚCIE | C6: =C8+C68+C193+C767+C947+C1047+C1117+C1336+C1001+C353 -> 283701 | D6: =D8+D68+D193+D767+D947+D1047+D1117+D1336+D1001+D353 -> 283701 | E6: tak
E7: tak
A8: I | B8: 2.2.1. TRANSPORT I KOMUNIKACJA | C8: =C10 -> 81400 | D8: =D10 -> 163197 | E8: =IF(C$8+D$8>0,"tak","nie") -> tak
E9: =IF(C$8+D$8>0,"tak","nie") -> tak
A10: I/2 | B10: Drogi i mosty - program 2 | C10: =C12+C34+C52+C60 -> 81400 | D10: =D12+D34+D52+D60 -> 163197 | E10: =IF(C$10+D$10>0,"tak","nie") -> tak
E11: =IF(C$10+D$10>0,"tak","nie") -> tak
A12: B/I/2/1 | B12: Utrzymanie i remonty dróg - zadanie 1 | C12: =SUM(C14,C26) -> 0 | D12: =SUM(D14,D26) -> 0 | E12: =IF(C$12+D$12>0,"tak","nie") -> nie
E13: =IF(C$12+D$12>0,"tak","nie") -> nie
A14: B/I/2/1/1 | B14: Utrzymanie i remonty dróg gminnych | C14: =C18+C22 -> 0 | D14: =D18+D22 -> 0 | E14: =IF(C$14+D$14>0,"tak","nie") -> nie
E15: =IF(C$14+D$14>0,"tak","nie") -> nie
B16: Dysponent: Zarząd Terenów Publicznych | E16: nie
E17: nie
B18: Klasyfikacja: rozdział: 60016 | E18: nie
E19: nie
B20: opis | E20: nie
E21: nie
B22: Klasyfikacja: rozdział: 60095 | E22: nie
E23: nie
B24: opis | E24: nie
E25: nie
A26: B/I/2/1/3 | B26: Utrzymanie i remonty dróg wewnętrznych | E26: =IF(C$26+D$26>0,"tak","nie") -> nie
E27: =IF(C$26+D$26>0,"tak","nie") -> nie
B28: Dysponent: Zarząd Terenów Publicznych | E28: nie
E29: nie
B30: Klasyfikacja: rozdział: 60017 | E30: nie
E31: nie
B32: opis | E32: nie
E33: nie
A34: B/I/2/4 | B34: Oświetlenie ulic - zadanie 4 | C34: =SUM(C36,C44) -> 81400 | D34: =SUM(D36,D44) -> 0 | E34: =IF(C$34+D$34>0,"tak","nie") -> tak
E35: =IF(C$34+D$34>0,"tak","nie") -> tak
A36: B/I/2/4/1 | B36: Iluminacje obiektów architektonicznych | C36: 68000 | D36: 0 | E36: =IF(C$36+D$36>0,"tak","nie") -> tak
E37: =IF(C$36+D$36>0,"tak","nie") -> tak
B38: Dysponent: Zarząd Terenów Publicznych | E38: tak
E39: tak
B40: Klasyfikacja: rozdział: 90015 | E40: tak
E41: tak
B42: Przeniesienie środków do zadania B/I/2/7. | E42: tak
E43: tak
A44: B/I/2/4/2 | B44: Utrzymanie i remonty oświetlenia ulic, placów i dróg | C44: 13400 | D44: 0 | E44: =IF(C$44+D$44>0,"tak","nie") -> tak
E45: =IF(C$44+D$44>0,"tak","nie") -> tak
B46: Dysponent: Zarząd Terenów Publicznych | E46: tak
E47: tak
B48: Klasyfikacja: rozdział: 90015 | E48: tak
E49: tak
B50: Przeniesienie środków do zadania B/I/2/7. | E50: tak
E51: tak
A52: B/I/2/5 | B52: Opracowania i analizy związane z drogami - zadanie 5 | E52: =IF(C$52+D$52>0,"tak","nie") -> nie
E53: =IF(C$52+D$52>0,"tak","nie") -> nie
B54: Dysponent: Zarząd Terenów Publicznych | E54: nie
E55: nie
B56: Klasyfikacja: rozdział: 60095 | E56: nie
E57: nie
B58: opis | E58: nie
E59: nie
A60: B/I/2/7 | B60: Gospodarowanie parkingami i węzłami komunikacyjnymi - zadanie 7 | C60: 0 | D60: 163197 | E60: =IF(C$60+D$60>0,"tak","nie") -> tak
E61: =IF(C$60+D$60>0,"tak","nie") -> tak
B62: Dysponent: Zarząd Terenów Publicznych | E62: tak
E63: tak
B64: Klasyfikacja: rozdział: 60019 | E64: tak
E65: tak
B66: Zwiększenie środków z przeznaczeniem na obsługę i utrzymanie parkingów w porządku i czystości. | E66: tak
E67: tak
A68: II | B68: 2.2.2. ŁAD PRZESTRZENNY I GOSPODARKA NIERUCHOMOŚCIAMI | C68: =C70+C126+C150 -> 0 | D68: =D70+D126+D150 -> 116664 | E68: =IF(C$68+D$68>0,"tak","nie") -> tak
E69: =IF(C$68+D$68>0,"tak","nie") -> tak
A70: II/3 | B70: Mieszkaniowy zasób komunalny oraz pozostałe zadania związane z zapewnieniem lokali mieszkalnych - program 3 | C70: =C72+C86+C94+C102+C118 -> 0 | D70: =D72+D86+D94+D102+D118 -> 116664 | E70: =IF(C$70+D$70>0,"tak","nie") -> tak
E71: =IF(C$70+D$70>0,"tak","nie") -> tak
A72: B/II/3/1 | B72: Koszty eksploatacji mieszkaniowego zasobu komunalnego - zadanie 1 | C72: =SUM(C74,C80) -> 0 | D72: =SUM(D74,D80) -> 0 | E72: =IF(C$72+D$72>0,"tak","nie") -> nie
E73: =IF(C$72+D$72>0,"tak","nie") -> nie
B74: Dysponent 1: Zakład Gospodarowania Nieruchomościami | E74: nie
E75: nie
B76: Klasyfikacja: rozdział: 70007 | E76: nie
E77: nie
E78: nie
E79: nie
B80: Dysponent 2: Zarząd Terenów Publicznych | E80: nie
E81: nie
B82: Klasyfikacja: rozdział: 70007 | E82: nie
E83: nie
E84: nie
A86: B/II/3/2 | B86: Remonty mieszkaniowego zasobu komunalnego - zadanie 2 | E86: =IF(C$86+D$86>0,"tak","nie") -> nie
E87: =IF(C$86+D$86>0,"tak","nie") -> nie
B88: Dysponent: Zakład Gospodarowania Nieruchomościami | E88: nie
E89: nie
B90: Klasyfikacja: rozdział: 70007 | E90: nie
E91: nie
E92: nie
E93: nie
A94: B/II/3/3 | B94: Utrzymanie jednostek gospodarujących zasobem komunalnym - zadanie 3 | E94: =IF(C$94+D$94>0,"tak","nie") -> nie
E95: =IF(C$94+D$94>0,"tak","nie") -> nie
B96: Dysponent: Zakład Gospodarowania Nieruchomościami | E96: nie
E97: nie
B98: Klasyfikacja: rozdział: 70004 | E98: nie
E99: nie
E100: nie
E101: nie
A102: B/II/3/4 | B102: Rozliczenia ze wspólnotami mieszkaniowymi - zadanie 4 | C102: =C106 -> 0 | D102: =D106 -> 116664 | E102: =IF(C$102+D$102>0,"tak","nie") -> tak
E103: =IF(C$102+D$102>0,"tak","nie") -> tak
B104: Dysponent: Zakład Gospodarowania Nieruchomościami | E104: tak
E105: tak
B106: Klasyfikacja: rozdział: 70005 | D106: =235947-119283 -> 116664 | E106: tak
E107: tak
B108: Zwiększenie środków na zaliczki eksploatacyjne i remontowe dla lokali położonych we wspólnotach mieszkaniowych. | E108: tak
E109: tak
B110: Klasyfikacja: rozdział: 70007 | E110: tak
E111: tak
B112: Dysponent 2: Wydział Wspólnot Mieszkaniowych | E112: tak
E113: tak
B114: Klasyfikacja: rozdział: 70007 | E114: tak
E115: tak
B116: opis | E116: tak
E117: tak
A118: B/II/3/6 | B118: Rozliczenia za lokale z właścicielami innymi niż m.st. Warszawa - zadanie 6 | C118: 0 | D118: 0 | E118: =IF(C$118+D$118>0,"tak","nie") -> nie
E119: =IF(C$118+D$118>0,"tak","nie") -> nie
B120: Dysponent: Wydział Zasobów Lokalowych | E120: nie
E121: nie
B122: Klasyfikacja: rozdział: 70005 | E122: nie
E123: nie
B124: opis | E124: nie
E125: nie
A126: II/4 | B126: Zadania związane z nabywaniem i sprzedażą nieruchomości - program 4 | C126: =C128+C136 -> 0 | D126: =D128+D136 -> 0 | E126: =IF(C$126+D$126>0,"tak","nie") -> nie
E127: =IF(C$126+D$126>0,"tak","nie") -> nie
A128: B/II/4/1 | B128: Przygotowanie nieruchomości komunalnych przeznaczonych m.in. do zbycia i zamiany - zadanie 1 | C128: 0 | D128: 0 | E128: =IF(C$128+D$128>0,"tak","nie") -> nie
E129: =IF(C$128+D$128>0,"tak","nie") -> nie
B130: Dysponent: Wydział Zarządzania Nieruchomościami | E130: nie
E131: nie
B132: Klasyfikacja: rozdział: 70005 | E132: nie
E133: nie
B134: opis | E134: nie
E135: nie
A136: B/II/4/2 | B136: Regulacja stanów prawnych nieruchomości, w tym odszkodowania - zadanie 2 | C136: =C138+C144 -> 0 | D136: =D138+D144 -> 0 | E136: =IF(C$136+D$136>0,"tak","nie") -> nie
E137: =IF(C$136+D$136>0,"tak","nie") -> nie
B138: Dysponent 1: Wydział Zarządzania Nieruchomościami | E138: nie
E139: nie
B140: Klasyfikacja: rozdział: 70005 | E140: nie
E141: nie
B142: opis | E142: nie
E143: nie
B144: Dysponent 2: Wydział Zasobów Lokalowych | E144: nie
E145: nie
B146: Klasyfikacja: rozdział: 70005 | E146: nie
E147: nie
B148: opis | E148: nie
E149: =IF(C$72+D$72>0,"tak","nie") -> nie
A150: II/5 | B150: Pozostały zasób komunalny - program 5 | C150: =C152+C165+C179 -> 0 | D150: =D152+D165+D179 -> 0 | E150: =IF(C$150+D$150>0,"tak","nie") -> nie
E151: =IF(C$150+D$150>0,"tak","nie") -> nie
A152: B/II/5/1 | B152: Zarządzanie lokalami użytkowymi i ich eksploatacja - zadanie 1 | C152: =C154+C159 -> 0 | D152: =D154+D159 -> 0 | E152: =IF(C$152+D$152>0,"tak","nie") -> nie
E153: =IF(C$152+D$152>0,"tak","nie") -> nie
B154: Dysponent 1: Zakład Gospodarowania Nieruchomościami | E154: nie
E155: nie
B156: Klasyfikacja: rozdział: 70005 | E156: nie
E157: nie
E158: nie
B159: Dysponent: Zarząd Terenów Publicznych | E159: nie
E160: nie
B161: Klasyfikacja: rozdział: 70005 | E161: nie
E162: nie
E163: nie
E164: nie
A165: B/II/5/2 | B165: Remonty lokali użytkowych - zadanie 2 | C165: =C167+C173 -> 0 | D165: =D167+D173 -> 0 | E165: =IF(C$165+D$165>0,"tak","nie") -> nie
E166: =IF(C$165+D$165>0,"tak","nie") -> nie
B167: Dysponent 1: Zakład Gospodarowania Nieruchomościami | E167: nie
E168: nie
B169: Klasyfikacja: rozdział: 70005 | E169: nie
E170: nie
E171: nie
E172: nie
B173: Dysponent: Zarząd Terenów Publicznych | D173: 0 | E173: nie
E174: nie
B175: Klasyfikacja: rozdział: 70005 | E175: nie
E176: nie
E177: nie
E178: nie
A179: B/II/5/6 | B179: Zarządzanie pozostałymi nieruchomościami - zadanie 6 | C179: =C181+C187 -> 0 | D179: =D181+D187 -> 0 | E179: =IF(C$179+D$179>0,"tak","nie") -> nie
E180: =IF(C$179+D$179>0,"tak","nie") -> nie
B181: Dysponent: Wydział Prawny | E181: nie
E182: nie
B183: Klasyfikacja: rozdział: 70005 | E183: nie
E184: nie
B185: opis | E185: nie
E186: nie
B187: Dysponent 2: Wydział Administracyjno-Gospodarczy | E187: nie
E188: nie
B189: Klasyfikacja: rozdział: 70005 | E189: nie
E190: nie
B191: opis | E191: nie
E192: nie
A193: III | B193: 2.2.3. GOSPODARKA KOMUNALNA I OCHRONA ŚRODOWISKA | C193: =SUM(C195,C261,C277,C317) -> 80013 | D193: =SUM(D195,D261,D277,D317) -> 0 | E193: =IF(C$193+D$193>0,"tak","nie") -> tak
E194: =IF(C$193+D$193>0,"tak","nie") -> tak
A195: III/1 | B195: Utrzymanie porządku i czystości - program 1 | C195: =C197+C215+C223+C233+C241 -> 4000 | D195: =D197+D215+D223+D233+D241 -> 0 | E195: =IF(C$195+D$195>0,"tak","nie") -> tak
E196: =IF(C$195+D$195>0,"tak","nie") -> tak
A197: B/III/1/1 | B197: Oczyszczanie miasta - zadanie 1 | C197: =C199+C207 -> 0 | D197: =D199+D207 -> 0 | E197: =IF(C$197+D$197>0,"tak","nie") -> nie
E198: =IF(C$197+D$197>0,"tak","nie") -> nie
A199: B/III/1/1/1 | B199: Zimowe oczyszczanie ulic | E199: =IF(C$199+D$199>0,"tak","nie") -> nie
E200: =IF(C$199+D$199>0,"tak","nie") -> nie
B201: Dysponent: Zarząd Terenów Publicznych | E201: nie
E202: nie
B203: Klasyfikacja: rozdział: 60016 | E203: nie
... 1153 more rows

Sheet uzasadnienie inwestycje
B1: Zmiany w opisie wydatków inwestycyjnych w układzie zadań
C2: 2024
C3: Zmniejszenia | D3: Zwiększenia
B4: OGÓŁEM | C4: =C7+C19 -> 278864 | D4: =D7+D19 -> 38350
B7: EDUKACJA | C7: =SUM(C10) -> 278864 | D7: =SUM(D10) -> 0
B10: Oświata i edukacyjna opieka wychowawcza - 1 program | C10: =SUM(C12) -> 278864 | D10: =SUM(D12) -> 0
B12: Panele fotowoltaiczne na budynku Zespołu Szkół Architektoniczno-Budowlanych i Licealnych przy ul. Przyrynek 9 - zadanie nr C/ŚRD/V/P1/96 | C12: 278864 | D12: 0
B14: Wnioskuje się o zmniejszenie o 278 864,00 zł zaplanowanych środków w roku 2024 na realizację zadania pod nazwą "Panele fotowoltaiczne na budynku Zespołu Szkół Architektoniczno-Budowlanych i Licealnych przy ul. Przyrynek 9" i przekazanie ich do dyspozycji Biura Infrastruktury. Ww. kwota stanowi oszczędności po przeprowadzeniu postępowania o udzielenie zamówienia publicznego na wykonanie dokumentacji projektowej i zawarciu umowy na montaż instalacji.
B16: Dysponent: Wydział Inwestycji
B17: Klasyfikacja: rozdział 80115
B19: REKREACJA, SPORT I TURYSTYKA | C19: =C21 -> 0 | D19: =D21 -> 38350
B21: Działalność rekreacyjno - sportowa | C21: =SUM(C23:C29) -> 0 | D21: =SUM(D23:D29) -> 38350
B23: Zakupy inwestycyjne dla Ośrodka Sportu i Rekreacji Dzielnicy Śródmieście -C/ŚRD/… | C23: 0 | D23: 38350
B25: Wnioskuje się o wprowadzenie nowego, jednorocznego zadania pod nazwą "Zakupy inwestycyjne dla Ośrodka Sportu i Rekreacji Dzielnicy Śródmieście" w kwocie 38 350,00 zł. W ramach zadania planuje się zakup podnośnika basenowego, który będzie stosowany do pomocy osobom niepełnosprawnym, z trudnościami w chodzeniu, w szczególności w fazie zanurzania się w wodzie i wychodzenia z wody basenowej. Gwarantuje on osobom z niepełnosprawnością lub osobom starszym wejście i wyjście z niecki basenowej. Źródłem finansowania są środki z Biura Sportu i Rekreacji Urzędu m.st. Warszawy.
B27: Dysponent: Wydział Sportu i Spraw Społecznych
B28: Klasyfikacja: rozdział 92604

Sheet wniosek dochody
L1: Załącznik nr 1 do Uchwały Nr Rady Dzielnicy Śródmieście m.st. Warszawy z dnia
A7: WNIOSEK W SPRAWIE ZMIAN W PLANIE DOCHODÓW
M9: w zł
A10: Stanowisko finansowe | C10: Pozycje finansowe | F10: Obszar funkcjonalny | G10: Program budżetowy | I10: Plan wg stanu na dzień 06.11.2024 | J10: Zaangażowanie | K10: Proponowane zmiany | M10: Plan po zmianach
A11: Nazwa dysponenta ** | B11: Kod | C11: Dział | D11: Rozdział | E11: § | F11: Kod | G11: Nazwa | H11: Kod | K11: zmniejszenia | L11: zwiększenia
A15: Dzielnica Śródmieście Urząd | B15: U.09.000 | C15: 758.75814.D2710+000 | F15: GMMW | G15: Środki wyrównawcze z budżetu m. st. Warszawy | H15: SD/2/K | I15: 383387055 | K15: 278864 | L15: 38350 | M15: =I15-K15+L15 -> 383146541
A16: RAZEM | I16: =SUBTOTAL(9,I15:I15) -> 383387055 | J16: =SUBTOTAL(9,J15:J15) -> 0 | K16: =SUBTOTAL(9,K15:K15) -> 278864 | L16: =SUBTOTAL(9,L15:L15) -> 38350 | M16: =SUBTOTAL(9,M15:M15) -> 383146541
A18: *) niepotrzebne skreślić
A19: **) Dzielnice podają nazwę Wydziału lub nazwę jednostki budżetowej
B22: Sporządził: | F22: Zatwierdził:

Sheet WNIOSEK wydatki
K1: Załącznik Nr 2 do Uchwały Nr Rady Dzielnicy Śródmieście m. st. Warszawy z dnia
A7: WNIOSEK W SPRAWIE ZMIAN W PLANIE WYDATKÓW BIEŻĄCYCH
M9: w zł
A10: Stanowisko finansowe | C10: Pozycje finansowe | F10: Obszar funkcjonalny | G10: Program budżetowy | I10: Plan wg stanu na dzień 06.11.2024 | J10: Zaangażowanie */ Wykonanie * wg stanu na dzień | K10: Proponowane zmiany | M10: Plan po zmianach
A11: Nazwa dysponenta ** | B11: Kod | C11: Dział | D11: Rozdział | E11: § | F11: Kod | G11: Nazwa | H11: Kod | K11: zmniejszenia | L11: zwiększenia
A15: Zarząd Terenów Publicznych | B15: J.09.000 | C15: 900.90015.W4260+000 | F15: GMMW | G15: Iluminacje obiektów architektonicznych | H15: B/I/2/4/1 | I15: 337128 | K15: 68000 | L15: 0 | M15: 269128
A16: Zarząd Terenów Publicznych | B16: J.09.000 | C16: 900.90015.W4270+000 | F16: GMMW | G16: Utrzymanie i remonty oświetlenia ulic, placów i dróg | H16: B/I/2/4/2 | I16: 366508 | K16: 13400 | L16: 0 | M16: 353108
A17: Zarząd Terenów Publicznych | B17: J.09.000 | C17: 600.60019.W4300+000 | F17: GMMW | G17: Gospodarowanie parkingami i węzłami komunikacyjnymi | H17: B/I/2/7 | I17: 2645479 | K17: 0 | L17: 163197 | M17: 2808676
A18: Zakład Gospodarowania Nieruchomościami | B18: J.09.000 | C18: 700.70005.W4430+000 | F18: GMMW | G18: Rozliczenia ze wspólnotami mieszkaniowymi | H18: B/II/3/4 | I18: 15775962 | K18: 0 | L18: =235947-119283 -> 116664 | M18: =I18-K18+L18 -> 15892626
A19: Zarząd Terenów Publicznych | B19: J.09.000 | C19: 900.90003.W4530+000 | F19: GMMW | G19: Szalety miejskie i kabiny sanitarne | H19: B/III/1/4 | I19: 4000 | K19: 4000 | L19: 0 | M19: 0
A20: Zarząd Terenów Publicznych | B20: J.09.000 | C20: 900.90004.W4260+000 | F20: GMMW | G20: Utrzymanie i konserwacja zieleni | H20: B/III/3/1 | I20: 496289 | K20: 20000 | L20: 0 | M20: 476289
A21: Zarząd Terenów Publicznych | B21: J.09.000 | C21: 900.90004.W4270+000 | F21: GMMW | G21: Utrzymanie i konserwacja zieleni | H21: B/III/3/1 | I21: 1429728 | K21: 1729 | L21: 0 | M21: 1427999
A22: Zarząd Terenów Publicznych | B22: J.09.000 | C22: 900.90095.W4270+000 | F22: GMMW | G22: Gospodarowanie targowiskami i nadzór nad handlem obwoźnym | H22: B/III/4/6 | I22: 120000 | K22: 30000 | L22: 0 | M22: 90000
A23: Zarząd Terenów Publicznych | B23: J.09.000 | C23: 900.90095.W4300+000 | F23: GMMW | G23: Gospodarowanie targowiskami i nadzór nad handlem obwoźnym | H23: B/III/4/6 | I23: 1068200 | K23: 10284 | L23: 0 | M23: 1057916
A24: Zarząd Terenów Publicznych | B24: J.09.000 | C24: 921.92195.W4260+000 | F24: GMMW | G24: Utrzymanie pomników, rzeźb i innych miejsc pamięci | H24: B/VII/4/2 | I24: 112978 | K24: 300 | L24: 0 | M24: 112678
A25: Zarząd Terenów Publicznych | B25: J.09.000 | C25: 921.92195.W4300+000 | F25: GMMW | G25: Utrzymanie pomników, rzeźb i innych miejsc pamięci | H25: B/VII/4/2 | I25: 501381 | K25: 1040 | L25: 0 | M25: 500341
A26: Wydział Inwestycji | B26: U.09.000 | C26: 900.90001.W4270+000 | F26: GMMW | G26: Utrzymanie i remonty sieci wodno-kanalizacyjnej | H26: B/III/2/1 | I26: 14000 | K26: 14000 | L26: 0 | M26: 0
A27: Wydział Oświaty i Funduszy Europejskich | B27: U.09.000 | C27: 801.80120.W2540+000 | F27: GMMW | G27: Dotacje dla niepublicznych liceów ogólnokształcących | H27: B/V/1/8/2 | I27: 15905711 | K27: 0 | L27: 3840 | M27: 15909551
A28: Wydział Oświaty i Funduszy Europejskich | B28: U.09.000 | C28: 801.80195.W4170+000 | F28: GMMW | G28: Postępowania związane z awansem zawodowym nauczycieli | H28: B/V/2/2 | I28: 23880 | K28: 3840 | L28: 0 | M28: 20040
A29: Wydział Kadr | B29: U.09.000 | C29: 750.75023.W4010+000 | F29: GMMW | G29: Fundusz wynagrodzeń | H29: B/X/2/1/1 | I29: 41784900 | K29: 50000 | L29: 0 | M29: 41734900
A30: Wydział Kadr | B30: U.09.000 | C30: 750.75023.W4120+000 | F30: GMMW | G30: Fundusz wynagrodzeń | H30: B/X/2/1/1 | I30: 847500 | K30: 20000 | L30: 0 | M30: 827500
A31: Wydział Kadr | B31: U.09.000 | C31: 750.75023.W3020+000 | F31: GODK | G31: Wydatki na rzecz pracownika | H31: B/X/2/1/2 | I31: 3000 | K31: 1000 | L31: 0 | M31: 2000
A32: Wydział Kadr | B32: U.09.000 | C32: 750.75023.W3020+000 | F32: GMMW | G32: Wydatki na rzecz pracownika | H32: B/X/2/1/2 | I32: 165500 | K32: 24300 | L32: 0 | M32: 141200
A33: Wydział Gospodarowania Odpadami Komunalnymi | B33: U.09.000 | C33: 900.90002.W4570+000 | F33: GODK | G33: Różne rozliczenia | H33: B/XI/1/7 | I33: 43616 | K33: 21808 | L33: 0 | M33: 21808
A34: RAZEM | I34: =SUM(I15:I33) -> 81645760 | J34: =SUM(J15:J33) -> 0 | K34: =SUM(K15:K33) -> 283701 | L34: =SUM(L15:L33) -> 283701 | M34: =SUM(M15:M33) -> 81645760
A36: *) niepotrzebne skreślić
A37: **) Dzielnice podają nazwę Wydziału lub nazwę jednostki budżetowej
B40: Sporządził: | F40: Zatwierdził:

Sheet wniosek inwestycje
L1: Załącznik Nr 3
L2: do Uchwały Nr
L3: Rady Dzielnicy Śródmieście m.st. Warszawy
L4: z dnia
A7: WNIOSEK W SPRAWIE ZMIAN W PLANIE WYDATKÓW MAJĄTKOWYCH
M9: w zł
A10: Stanowisko finansowe | C10: Pozycje finansowe | F10: Obszar funkcjonalny | G10: Program budżetowy | I10: Plan wg stanu na dzień 06.11.2024 r. | J10: Zaangażowanie | K10: Proponowane zmiany | M10: Plan po zmianach
A11: Nazwa dysponenta ** | B11: Kod dysponenta | C11: Dział | D11: rozdział | E11: § | F11: Kod | G11: Nazwa | H11: Kod | K11: zmniejszenia | L11: zwiększenia
A15: Wydział Inwestycji | B15: U.09.000 | C15: 801.80115.W6050+000 | F15: GMMW | G15: Panele fotowoltaiczne na budynku Zespołu Szkół Architektoniczno-Budowlanych i Licealnych przy ul. Przyrynek 9 | H15: C/ŚRD/V/P1/96 | I15: 420000 | K15: 278864 | L15: 0 | M15: =I15-K15+L15 -> 141136
A16: Wydział Sportu i Spraw Społecznych | B16: U.09.000 | C16: 926.92604.W6210+000 | F16: GMMW | G16: Zakupy inwestycyjne dla Ośrodka Sportu i Rekreacji Dzielnicy Śródmieście | H16: C/ŚRD/ | I16: 0 | K16: 0 | L16: 38350 | M16: 38350
A17: RAZEM | I17: =SUM(I15:I16) -> 420000 | J17: =SUM(J15:J16) -> 0 | K17: =SUM(K15:K16) -> 278864 | L17: =SUM(L15:L16) -> 38350 | M17: =SUM(M15:M16) -> 179486
B20: Sporządził: | F20: Zatwierdził:

Sheet ZADANIOWY
A1: PLAN WYDATKÓW w UKŁADZIE ZADANIOWYM | P1: Załącznik Nr 4 do Uchwały Nr Rady Dzielnicy Śródmieście m. st. Warszawy z dnia | V1: =IF(COUNTA(V2:V15583)=0,"",COUNTA(V2:V15583)) -> 
A2: D.09.000 | F2: =IF(OR(T3<>"",U3<>""),"Istnieją błędy","") ->  | J2: =J11222 -> 1159361272 | K2: 283223101 | L2: 283701 | M2: 283701 | N2: 134948 | O2: 3840 | P2: 1159361272 | Q2: 283091993
A3: PROGRAM | B3: OPIS | C3: S/P/Z/PZ | D3: Header | E3: DZIAŁ | F3: ROZDZIAŁ | G3: § | H3: NAZWA PARAGRAFU | I3: OBSZAR FUNKCJONALNY | J3: PLAN | K3: w tym Urząd m.st. Warszawy | L3: PLAN Zmiana[-] | M3: PLAN Zmiana[+] | N3: w tym Urząd Zmiana[-] | O3: w tym Urząd Zmiana[+] | P3: PLAN PO ZMIANIE | Q3: w tym Urząd PO ZMIANIE | R3: WYPEŁNIONE POZYCJE | S3: WYPEŁNIONE ZMIANY | T3: =IF(COUNTIF(T4:T11221,"błędny urząd")<>0,"ŹLE","") ->  | U3: =IF(COUNTIF(U4:U11221,"ujemny plan")<>0,"ŹLE","") -> 
A4: I | B4: TRANSPORT I KOMUNIKACJA | C4: I sfera | D4: T | J4: =SUM(J197,J5) -> 17085900 | K4: 0 | L4: 81400 | M4: 163197 | N4: 0 | O4: 0 | P4: 17167697 | Q4: 0 | R4: =IF(SUM(J4:Q4)>0,"Tak","") -> Tak | S4: =IF(SUM(L4:O4)>0,"Tak","") -> Tak | T4: =IF(OR(J4<K4,P4<Q4,L4<N4,M4<O4),"błędny urząd","") ->  | U4: =IF(OR(J4<0,K4<0,P4<0,Q4<0),"ujemny plan","") -> 
A5: I/1 | B5: Komunikacja zbiorowa | C5: 1 program | D5: T | J5: =SUM(J177,J164,J38,J6) -> 0 | K5: 0 | L5: 0 | M5: 0 | N5: 0 | O5: 0 | P5: 0 | Q5: 0
A6: B/I/1/1 | B6: Zakup usług komunikacji miejskiej | C6: 1 zadanie | D6: T | J6: =SUM(J34,J30,J26,J19,J11,J7) -> 0 | K6: 0 | L6: 0 | M6: 0 | N6: 0 | O6: 0 | P6: 0 | Q6: 0
A7: B/I/1/1/1 | B7: Metro Warszawskie | C7: 1 podzadanie | D7: T | E7: 600 | F7: 60004 | J7: =SUM(J8) -> 0 | K7: 0 | L7: 0 | M7: 0 | N7: 0 | O7: 0 | P7: 0 | Q7: 0
A8: B/I/1/1/1 | B8: Metro Warszawskie | C8: 1 podzadanie | D8: NIE | E8: 600 | F8: 60004 | J8: =SUM(J9:J10) -> 0 | K8: 0 | L8: 0 | M8: 0 | N8: 0 | O8: 0 | P8: 0 | Q8: 0
A9: B/I/1/1/1 | B9: Metro Warszawskie | C9: 1 podzadanie | D9: NIE | E9: 600 | F9: 60004 | G9: 4300 | H9: Zakup usług pozostałych | I9: GMMW | P9: =J9+M9-L9 -> 0 | Q9: =K9+O9-N9 -> 0
A10: B/I/1/1/1 | B10: Metro Warszawskie | C10: 1 podzadanie | D10: NIE | E10: 600 | F10: 60004 | G10: 4530 | H10: Podatek od towarów i usług (VAT) | I10: GMMW | P10: =J10+M10-L10 -> 0 | Q10: =K10+O10-N10 -> 0
A11: B/I/1/1/2 | B11: Miejskie Zakłady Autobusowe | C11: 2 podzadanie | D11: T | E11: 600 | F11: 60004 | J11: =SUM(J12) -> 0 | K11: 0 | L11: 0 | M11: 0 | N11: 0 | O11: 0 | P11: 0 | Q11: 0
A12: B/I/1/1/2 | B12: Miejskie Zakłady Autobusowe | C12: 2 podzadanie | D12: NIE | E12: 600 | F12: 60004 | J12: =SUM(J13:J18) -> 0 | K12: 0 | L12: 0 | M12: 0 | N12: 0 | O12: 0 | P12: 0 | Q12: 0
A13: B/I/1/1/2 | B13: Miejskie Zakłady Autobusowe | C13: 2 podzadanie | D13: NIE | E13: 600 | F13: 60004 | G13: 4300 | H13: Zakup usług pozostałych | I13: GUUW | P13: =J13+M13-L13 -> 0 | Q13: =K13+O13-N13 -> 0
A14: B/I/1/1/2 | B14: Miejskie Zakłady Autobusowe | C14: 2 podzadanie | D14: NIE | E14: 600 | F14: 60004 | G14: 4300 | H14: Zakup usług pozostałych | I14: GMMW | P14: 0 | Q14: 0
A15: B/I/1/1/2 | B15: Miejskie Zakłady Autobusowe | C15: 2 podzadanie | D15: NIE | E15: 600 | F15: 60004 | G15: 4300 | H15: Zakup usług pozostałych | I15: GPGM | P15: 0 | Q15: 0
A16: B/I/1/1/2 | B16: Miejskie Zakłady Autobusowe | C16: 2 podzadanie | D16: NIE | E16: 600 | F16: 60004 | G16: 4370 | H16: Zakup usług związanych z pomocą obywatelom Ukrainy | I16: GUUW | P16: 0 | Q16: 0
A17: B/I/1/1/2 | B17: Miejskie Zakłady Autobusowe | C17: 2 podzadanie | D17: NIE | E17: 600 | F17: 60004 | G17: 4530 | H17: Podatek od towarów i usług (VAT) | I17: GUUW | P17: 0 | Q17: 0
A18: B/I/1/1/2 | B18: Miejskie Zakłady Autobusowe | C18: 2 podzadanie | D18: NIE | E18: 600 | F18: 60004 | G18: 4530 | H18: Podatek od towarów i usług (VAT) | I18: GMMW | P18: 0 | Q18: 0
A19: B/I/1/1/3 | B19: Pozostali przewoźnicy autobusowi | C19: 3 podzadanie | D19: T | E19: 600 | F19: 60004 | J19: =SUM(J20) -> 0 | K19: 0 | L19: 0 | M19: 0 | N19: 0 | O19: 0 | P19: 0 | Q19: 0
A20: B/I/1/1/3 | B20: Pozostali przewoźnicy autobusowi | C20: 3 podzadanie | D20: NIE | E20: 600 | F20: 60004 | J20: =SUM(J21:J25) -> 0 | K20: 0 | L20: 0 | M20: 0 | N20: 0 | O20: 0 | P20: 0 | Q20: 0
A21: B/I/1/1/3 | B21: Pozostali przewoźnicy autobusowi | C21: 3 podzadanie | D21: NIE | E21: 600 | F21: 60004 | G21: 4300 | H21: Zakup usług pozostałych | I21: GUUW | P21: =J21+M21-L21 -> 0 | Q21: =K21+O21-N21 -> 0
A22: B/I/1/1/3 | B22: Pozostali przewoźnicy autobusowi | C22: 3 podzadanie | D22: NIE | E22: 600 | F22: 60004 | G22: 4300 | H22: Zakup usług pozostałych | I22: GMMW | P22: =J22+M22-L22 -> 0 | Q22: =K22+O22-N22 -> 0
A23: B/I/1/1/3 | B23: Pozostali przewoźnicy autobusowi | C23: 3 podzadanie | D23: NIE | E23: 600 | F23: 60004 | G23: 4370 | H23: Zakup usług związanych z pomocą obywatelom Ukrainy | I23: GUUW | P23: =J23+M23-L23 -> 0 | Q23: =K23+O23-N23 -> 0
A24: B/I/1/1/3 | B24: Pozostali przewoźnicy autobusowi | C24: 3 podzadanie | D24: NIE | E24: 600 | F24: 60004 | G24: 4530 | H24: Podatek od towarów i usług (VAT) | I24: GUUW | P24: =J24+M24-L24 -> 0 | Q24: =K24+O24-N24 -> 0
A25: B/I/1/1/3 | B25: Pozostali przewoźnicy autobusowi | C25: 3 podzadanie | D25: NIE | E25: 600 | F25: 60004 | G25: 4530 | H25: Podatek od towarów i usług (VAT) | I25: GMMW | P25: =J25+M25-L25 -> 0 | Q25: =K25+O25-N25 -> 0
A26: B/I/1/1/4 | B26: Szybka Kolej Miejska | C26: 4 podzadanie | D26: T | E26: 600 | F26: 60004 | J26: =SUM(J27) -> 0 | K26: 0 | L26: 0 | M26: 0 | N26: 0 | O26: 0 | P26: 0 | Q26: 0
A27: B/I/1/1/4 | B27: Szybka Kolej Miejska | C27: 4 podzadanie | D27: NIE | E27: 600 | F27: 60004 | J27: =SUM(J28:J29) -> 0 | K27: 0 | L27: 0 | M27: 0 | N27: 0 | O27: 0 | P27: 0 | Q27: 0
A28: B/I/1/1/4 | B28: Szybka Kolej Miejska | C28: 4 podzadanie | D28: NIE | E28: 600 | F28: 60004 | G28: 4300 | H28: Zakup usług pozostałych | I28: GMMW | P28: =J28+M28-L28 -> 0 | Q28: =K28+O28-N28 -> 0
A29: B/I/1/1/4 | B29: Szybka Kolej Miejska | C29: 4 podzadanie | D29: NIE | E29: 600 | F29: 60004 | G29: 4530 | H29: Podatek od towarów i usług (VAT) | I29: GMMW | P29: =J29+M29-L29 -> 0 | Q29: =K29+O29-N29 -> 0
A30: B/I/1/1/5 | B30: Tramwaje Warszawskie | C30: 5 podzadanie | D30: T | E30: 600 | F30: 60004 | J30: =SUM(J31) -> 0 | K30: 0 | L30: 0 | M30: 0 | N30: 0 | O30: 0 | P30: 0 | Q30: 0
A31: B/I/1/1/5 | B31: Tramwaje Warszawskie | C31: 5 podzadanie | D31: NIE | E31: 600 | F31: 60004 | J31: =SUM(J32:J33) -> 0 | K31: 0 | L31: 0 | M31: 0 | N31: 0 | O31: 0 | P31: 0 | Q31: 0
A32: B/I/1/1/5 | B32: Tramwaje Warszawskie | C32: 5 podzadanie | D32: NIE | E32: 600 | F32: 60004 | G32: 4300 | H32: Zakup usług pozostałych | I32: GMMW | P32: =J32+M32-L32 -> 0 | Q32: =K32+O32-N32 -> 0
A33: B/I/1/1/5 | B33: Tramwaje Warszawskie | C33: 5 podzadanie | D33: NIE | E33: 600 | F33: 60004 | G33: 4530 | H33: Podatek od towarów i usług (VAT) | I33: GMMW | P33: =J33+M33-L33 -> 0 | Q33: =K33+O33-N33 -> 0
A34: B/I/1/1/6 | B34: Pozostali przewoźnicy kolejowi | C34: 6 podzadanie | D34: T | E34: 600 | F34: 60004 | J34: =SUM(J35) -> 0 | K34: 0 | L34: 0 | M34: 0 | N34: 0 | O34: 0 | P34: 0 | Q34: 0
A35: B/I/1/1/6 | B35: Pozostali przewoźnicy kolejowi | C35: 6 podzadanie | D35: NIE | E35: 600 | F35: 60004 | J35: =SUM(J36:J37) -> 0 | K35: 0 | L35: 0 | M35: 0 | N35: 0 | O35: 0 | P35: 0 | Q35: 0
A36: B/I/1/1/6 | B36: Pozostali przewoźnicy kolejowi | C36: 6 podzadanie | D36: NIE | E36: 600 | F36: 60004 | G36: 4300 | H36: Zakup usług pozostałych | I36: GMMW | P36: =J36+M36-L36 -> 0 | Q36: =K36+O36-N36 -> 0
A37: B/I/1/1/6 | B37: Pozostali przewoźnicy kolejowi | C37: 6 podzadanie | D37: NIE | E37: 600 | F37: 60004 | G37: 4530 | H37: Podatek od towarów i usług (VAT) | I37: GMMW | P37: =J37+M37-L37 -> 0 | Q37: =K37+O37-N37 -> 0
A38: B/I/1/2 | B38: Zarządzanie komunikacją miejską | C38: 2 zadanie | D38: T | J38: =SUM(J123,J113,J39) -> 0 | K38: 0 | L38: 0 | M38: 0 | N38: 0 | O38: 0 | P38: 0 | Q38: 0
A39: B/I/1/2/1 | B39: Utrzymanie Zarządu Transportu Miejskiego, w tym obsługa inwestycji | C39: 1 podzadanie | D39: T | E39: 600 | F39: 60004 | J39: =SUM(J40) -> 0 | K39: 0 | L39: 0 | M39: 0 | N39: 0 | O39: 0 | P39: 0 | Q39: 0
A40: B/I/1/2/1 | B40: Utrzymanie Zarządu Transportu Miejskiego, w tym obsługa inwestycji | C40: 1 podzadanie | D40: NIE | E40: 600 | F40: 60004 | J40: =SUM(J41:J112) -> 0 | K40: 0 | L40: 0 | M40: 0 | N40: 0 | O40: 0 | P40: 0 | Q40: 0
A41: B/I/1/2/1 | B41: Utrzymanie Zarządu Transportu Miejskiego, w tym obsługa inwestycji | C41: 1 podzadanie | D41: NIE | E41: 600 | F41: 60004 | G41: 3020 | H41: Wydatki osobowe niezaliczone do wynagrodzeń | I41: GMMW | P41: =J41+M41-L41 -> 0 | Q41: =K41+O41-N41 -> 0
A42: B/I/1/2/1 | B42: Utrzymanie Zarządu Transportu Miejskiego, w tym obsługa inwestycji | C42: 1 podzadanie | D42: NIE | E42: 600 | F42: 60004 | G42: 4010 | H42: Wynagrodzenia osobowe pracowników | I42: GMMW | P42: 0 | Q42: 0
A43: B/I/1/2/1 | B43: Utrzymanie Zarządu Transportu Miejskiego, w tym obsługa inwestycji | C43: 1 podzadanie | D43: NIE | E43: 600 | F43: 60004 | G43: 4017 | H43: Wynagrodzenia osobowe pracowników | I43: SFUE/23/6 | P43: 0 | Q43: 0
A44: B/I/1/2/1 | B44: Utrzymanie Zarządu Transportu Miejskiego, w tym obsługa inwestycji | C44: 1 podzadanie | D44: NIE | E44: 600 | F44: 60004 | G44: 4018 | H44: Wynagrodzenia osobowe pracowników | I44: SFUE/8/50 | P44: 0 | Q44: 0
A45: B/I/1/2/1 | B45: Utrzymanie Zarządu Transportu Miejskiego, w tym obsługa inwestycji | C45: 1 podzadanie | D45: NIE | E45: 600 | F45: 60004 | G45: 4018 | H45: Wynagrodzenia osobowe pracowników | I45: SFUE/8/59 | P45: 0 | Q45: 0
A46: B/I/1/2/1 | B46: Utrzymanie Zarządu Transportu Miejskiego, w tym obsługa inwestycji | C46: 1 podzadanie | D46: NIE | E46: 600 | F46: 60004 | G46: 4018 | H46: Wynagrodzenia osobowe pracowników | I46: SFUE/8/60 | P46: 0 | Q46: 0
A47: B/I/1/2/1 | B47: Utrzymanie Zarządu Transportu Miejskiego, w tym obsługa inwestycji | C47: 1 podzadanie | D47: NIE | E47: 600 | F47: 60004 | G47: 4018 | H47: Wynagrodzenia osobowe pracowników | I47: SFUE/8/61 | P47: 0 | Q47: 0
A48: B/I/1/2/1 | B48: Utrzymanie Zarządu Transportu Miejskiego, w tym obsługa inwestycji | C48: 1 podzadanie | D48: NIE | E48: 600 | F48: 60004 | G48: 4019 | H48: Wynagrodzenia osobowe pracowników | I48: SFUE/23/6 | P48: 0 | Q48: 0
A49: B/I/1/2/1 | B49: Utrzymanie Zarządu Transportu Miejskiego, w tym obsługa inwestycji | C49: 1 podzadanie | D49: NIE | E49: 600 | F49: 60004 | G49: 4019 | H49: Wynagrodzenia osobowe pracowników | I49: SFUE/8/60 | P49: 0 | Q49: 0
A50: B/I/1/2/1 | B50: Utrzymanie Zarządu Transportu Miejskiego, w tym obsługa inwestycji | C50: 1 podzadanie | D50: NIE | E50: 600 | F50: 60004 | G50: 4019 | H50: Wynagrodzenia osobowe pracowników | I50: SFUE/8/61 | P50: 0 | Q50: 0
A51: B/I/1/2/1 | B51: Utrzymanie Zarządu Transportu Miejskiego, w tym obsługa inwestycji | C51: 1 podzadanie | D51: NIE | E51: 600 | F51: 60004 | G51: 4040 | H51: Dodatkowe wynagrodzenie roczne | I51: GMMW | P51: 0 | Q51: 0
A52: B/I/1/2/1 | B52: Utrzymanie Zarządu Transportu Miejskiego, w tym obsługa inwestycji | C52: 1 podzadanie | D52: NIE | E52: 600 | F52: 60004 | G52: 4047 | H52: Dodatkowe wynagrodzenie roczne | I52: SFUE/23/6 | P52: 0 | Q52: 0
A53: B/I/1/2/1 | B53: Utrzymanie Zarządu Transportu Miejskiego, w tym obsługa inwestycji | C53: 1 podzadanie | D53: NIE | E53: 600 | F53: 60004 | G53: 4048 | H53: Dodatkowe wynagrodzenie roczne | I53: SFUE/8/59 | P53: 0 | Q53: 0
A54: B/I/1/2/1 | B54: Utrzymanie Zarządu Transportu Miejskiego, w tym obsługa inwestycji | C54: 1 podzadanie | D54: NIE | E54: 600 | F54: 60004 | G54: 4049 | H54: Dodatkowe wynagrodzenie roczne | I54: SFUE/23/6 | P54: 0 | Q54: 0
A55: B/I/1/2/1 | B55: Utrzymanie Zarządu Transportu Miejskiego, w tym obsługa inwestycji | C55: 1 podzadanie | D55: NIE | E55: 600 | F55: 60004 | G55: 4110 | H55: Składki na ubezpieczenia społeczne | I55: GMMW | P55: 0 | Q55: 0
A56: B/I/1/2/1 | B56: Utrzymanie Zarządu Transportu Miejskiego, w tym obsługa inwestycji | C56: 1 podzadanie | D56: NIE | E56: 600 | F56: 60004 | G56: 4117 | H56: Składki na ubezpieczenia społeczne | I56: SFUE/23/6 | P56: 0 | Q56: 0
A57: B/I/1/2/1 | B57: Utrzymanie Zarządu Transportu Miejskiego, w tym obsługa inwestycji | C57: 1 podzadanie | D57: NIE | E57: 600 | F57: 60004 | G57: 4118 | H57: Składki na ubezpieczenia społeczne | I57: SFUE/8/50 | P57: 0 | Q57: 0
A58: B/I/1/2/1 | B58: Utrzymanie Zarządu Transportu Miejskiego, w tym obsługa inwestycji | C58: 1 podzadanie | D58: NIE | E58: 600 | F58: 60004 | G58: 4118 | H58: Składki na ubezpieczenia społeczne | I58: SFUE/8/59 | P58: 0 | Q58: 0
A59: B/I/1/2/1 | B59: Utrzymanie Zarządu Transportu Miejskiego, w tym obsługa inwestycji | C59: 1 podzadanie | D59: NIE | E59: 600 | F59: 60004 | G59: 4118 | H59: Składki na ubezpieczenia społeczne | I59: SFUE/8/60 | P59: 0 | Q59: 0
A60: B/I/1/2/1 | B60: Utrzymanie Zarządu Transportu Miejskiego, w tym obsługa inwestycji | C60: 1 podzadanie | D60: NIE | E60: 600 | F60: 60004 | G60: 4118 | H60: Składki na ubezpieczenia społeczne | I60: SFUE/8/61 | P60: 0 | Q60: 0
A61: B/I/1/2/1 | B61: Utrzymanie Zarządu Transportu Miejskiego, w tym obsługa inwestycji | C61: 1 podzadanie | D61: NIE | E61: 600 | F61: 60004 | G61: 4119 | H61: Składki na ubezpieczenia społeczne | I61: SFUE/23/6 | P61: 0 | Q61: 0
A62: B/I/1/2/1 | B62: Utrzymanie Zarządu Transportu Miejskiego, w tym obsługa inwestycji | C62: 1 podzadanie | D62: NIE | E62: 600 | F62: 60004 | G62: 4119 | H62: Składki na ubezpieczenia społeczne | I62: SFUE/8/60 | P62: 0 | Q62: 0
A63: B/I/1/2/1 | B63: Utrzymanie Zarządu Transportu Miejskiego, w tym obsługa inwestycji | C63: 1 podzadanie | D63: NIE | E63: 600 | F63: 60004 | G63: 4119 | H63: Składki na ubezpieczenia społeczne | I63: SFUE/8/61 | P63: 0 | Q63: 0
A64: B/I/1/2/1 | B64: Utrzymanie Zarządu Transportu Miejskiego, w tym obsługa inwestycji | C64: 1 podzadanie | D64: NIE | E64: 600 | F64: 60004 | G64: 4120 | H64: Składki na Fundusz Pracy oraz Fundusz Solidarnościowy | I64: GMMW | P64: 0 | Q64: 0
A65: B/I/1/2/1 | B65: Utrzymanie Zarządu Transportu Miejskiego, w tym obsługa inwestycji | C65: 1 podzadanie | D65: NIE | E65: 600 | F65: 60004 | G65: 4127 | H65: Składki na Fundusz Pracy oraz Fundusz Solidarnościowy | I65: SFUE/23/6 | P65: 0 | Q65: 0
A66: B/I/1/2/1 | B66: Utrzymanie Zarządu Transportu Miejskiego, w tym obsługa inwestycji | C66: 1 podzadanie | D66: NIE | E66: 600 | F66: 60004 | G66: 4128 | H66: Składki na Fundusz Pracy oraz Fundusz Solidarnościowy | I66: SFUE/8/50 | P66: 0 | Q66: 0
A67: B/I/1/2/1 | B67: Utrzymanie Zarządu Transportu Miejskiego, w tym obsługa inwestycji | C67: 1 podzadanie | D67: NIE | E67: 600 | F67: 60004 | G67: 4128 | H67: Składki na Fundusz Pracy oraz Fundusz Solidarnościowy | I67: SFUE/8/59 | P67: 0 | Q67: 0
A68: B/I/1/2/1 | B68: Utrzymanie Zarządu Transportu Miejskiego, w tym obsługa inwestycji | C68: 1 podzadanie | D68: NIE | E68: 600 | F68: 60004 | G68: 4128 | H68: Składki na Fundusz Pracy oraz Fundusz Solidarnościowy | I68: SFUE/8/60 | P68: 0 | Q68: 0 | R68: =IF(SUM(J68:Q68)>0,"Tak","") ->  | S68: =IF(SUM(L68:O68)>0,"Tak","") ->  | T68: =IF(OR(J68<K68,P68<Q68,L68<N68,M68<O68),"błędny urząd","") ->  | U68: =IF(OR(J68<0,K68<0,P68<0,Q68<0),"ujemny plan","") -> 
A69: B/I/1/2/1 | B69: Utrzymanie Zarządu Transportu Miejskiego, w tym obsługa inwestycji | C69: 1 podzadanie | D69: NIE | E69: 600 | F69: 60004 | G69: 4128 | H69: Składki na Fundusz Pracy oraz Fundusz Solidarnościowy | I69: SFUE/8/61 | P69: 0 | Q69: 0
A70: B/I/1/2/1 | B70: Utrzymanie Zarządu Transportu Miejskiego, w tym obsługa inwestycji | C70: 1 podzadanie | D70: NIE | E70: 600 | F70: 60004 | G70: 4129 | H70: Składki na Fundusz Pracy oraz Fundusz Solidarnościowy | I70: SFUE/23/6 | P70: 0 | Q70: 0
A71: B/I/1/2/1 | B71: Utrzymanie Zarządu Transportu Miejskiego, w tym obsługa inwestycji | C71: 1 podzadanie | D71: NIE | E71: 600 | F71: 60004 | G71: 4129 | H71: Składki na Fundusz Pracy oraz Fundusz Solidarnościowy | I71: SFUE/8/60 | P71: 0 | Q71: 0
A72: B/I/1/2/1 | B72: Utrzymanie Zarządu Transportu Miejskiego, w tym obsługa inwestycji | C72: 1 podzadanie | D72: NIE | E72: 600 | F72: 60004 | G72: 4129 | H72: Składki na Fundusz Pracy oraz Fundusz Solidarnościowy | I72: SFUE/8/61 | P72: 0 | Q72: 0
A73: B/I/1/2/1 | B73: Utrzymanie Zarządu Transportu Miejskiego, w tym obsługa inwestycji | C73: 1 podzadanie | D73: NIE | E73: 600 | F73: 60004 | G73: 4140 | H73: Wpłaty na Państwowy Fundusz Rehabilitacji Osób Niepełnosprawnych | I73: GMMW | P73: =J73+M73-L73 -> 0 | Q73: =K73+O73-N73 -> 0
A74: B/I/1/2/1 | B74: Utrzymanie Zarządu Transportu Miejskiego, w tym obsługa inwestycji | C74: 1 podzadanie | D74: NIE | E74: 600 | F74: 60004 | G74: 4170 | H74: Wynagrodzenia bezosobowe | I74: GMMW | P74: 0 | Q74: 0
A75: B/I/1/2/1 | B75: Utrzymanie Zarządu Transportu Miejskiego, w tym obsługa inwestycji | C75: 1 podzadanie | D75: NIE | E75: 600 | F75: 60004 | G75: 4190 | H75: Nagrody konkursowe | I75: GMMW | P75: 0 | Q75: 0
A76: B/I/1/2/1 | B76: Utrzymanie Zarządu Transportu Miejskiego, w tym obsługa inwestycji | C76: 1 podzadanie | D76: NIE | E76: 600 | F76: 60004 | G76: 4210 | H76: Zakup materiałów i wyposażenia | I76: GMMW/C | P76: 0 | Q76: 0
A77: B/I/1/2/1 | B77: Utrzymanie Zarządu Transportu Miejskiego, w tym obsługa inwestycji | C77: 1 podzadanie | D77: NIE | E77: 600 | F77: 60004 | G77: 4210 | H77: Zakup materiałów i wyposażenia | I77: GMMW | P77: 0 | Q77: 0
A78: B/I/1/2/1 | B78: Utrzymanie Zarządu Transportu Miejskiego, w tym obsługa inwestycji | C78: 1 podzadanie | D78: NIE | E78: 600 | F78: 60004 | G78: 4260 | H78: Zakup energii | I78: GMMW | P78: 0 | Q78: 0
A79: B/I/1/2/1 | B79: Utrzymanie Zarządu Transportu Miejskiego, w tym obsługa inwestycji | C79: 1 podzadanie | D79: NIE | E79: 600 | F79: 60004 | G79: 4270 | H79: Zakup usług remontowych | I79: GMMW | P79: 0 | Q79: 0
A80: B/I/1/2/1 | B80: Utrzymanie Zarządu Transportu Miejskiego, w tym obsługa inwestycji | C80: 1 podzadanie | D80: NIE | E80: 600 | F80: 60004 | G80: 4280 | H80: Zakup usług zdrowotnych | I80: GMMW/C | P80: 0 | Q80: 0
A81: B/I/1/2/1 | B81: Utrzymanie Zarządu Transportu Miejskiego, w tym obsługa inwestycji | C81: 1 podzadanie | D81: NIE | E81: 600 | F81: 60004 | G81: 4280 | H81: Zakup usług zdrowotnych | I81: GMMW | P81: 0 | Q81: 0
A82: B/I/1/2/1 | B82: Utrzymanie Zarządu Transportu Miejskiego, w tym obsługa inwestycji | C82: 1 podzadanie | D82: NIE | E82: 600 | F82: 60004 | G82: 4300 | H82: Zakup usług pozostałych | I82: GMMW | P82: 0 | Q82: 0
A83: B/I/1/2/1 | B83: Utrzymanie Zarządu Transportu Miejskiego, w tym obsługa inwestycji | C83: 1 podzadanie | D83: NIE | E83: 600 | F83: 60004 | G83: 4360 | H83: Opłaty z tytułu zakupu usług telekomunikacyjnych | I83: GMMW | P83: 0 | Q83: 0
A84: B/I/1/2/1 | B84: Utrzymanie Zarządu Transportu Miejskiego, w tym obsługa inwestycji | C84: 1 podzadanie | D84: NIE | E84: 600 | F84: 60004 | G84: 4380 | H84: Zakup usług obejmujących tłumaczenia | I84: GMMW | P84: 0 | Q84: 0
A85: B/I/1/2/1 | B85: Utrzymanie Zarządu Transportu Miejskiego, w tym obsługa inwestycji | C85: 1 podzadanie | D85: NIE | E85: 600 | F85: 60004 | G85: 4390 | H85: Zakup usług obejmujących wykonanie ekspertyz, analiz i opinii | I85: GMMW | P85: 0 | Q85: 0
A86: B/I/1/2/1 | B86: Utrzymanie Zarządu Transportu Miejskiego, w tym obsługa inwestycji | C86: 1 podzadanie | D86: NIE | E86: 600 | F86: 60004 | G86: 4400 | H86: Opłaty za administrowanie i czynsze za budynki, lokale i pomieszczenia garażowe | I86: GMMW | P86: 0 | Q86: 0
A87: B/I/1/2/1 | B87: Utrzymanie Zarządu Transportu Miejskiego, w tym obsługa inwestycji | C87: 1 podzadanie | D87: NIE | E87: 600 | F87: 60004 | G87: 4410 | H87: Podróże służbowe krajowe | I87: GMMW | P87: 0 | Q87: 0
A88: B/I/1/2/1 | B88: Utrzymanie Zarządu Transportu Miejskiego, w tym obsługa inwestycji | C88: 1 podzadanie | D88: NIE | E88: 600 | F88: 60004 | G88: 4420 | H88: Podróże służbowe zagraniczne | I88: GMMW | P88: 0 | Q88: 0
A89: B/I/1/2/1 | B89: Utrzymanie Zarządu Transportu Miejskiego, w tym obsługa inwestycji | C89: 1 podzadanie | D89: NIE | E89: 600 | F89: 60004 | G89: 4428 | H89: Podróże służbowe zagraniczne | I89: SFUE/8/50 | P89: 0 | Q89: 0
A90: B/I/1/2/1 | B90: Utrzymanie Zarządu Transportu Miejskiego, w tym obsługa inwestycji | C90: 1 podzadanie | D90: NIE | E90: 600 | F90: 60004 | G90: 4428 | H90: Podróże służbowe zagraniczne | I90: SFUE/8/59 | P90: 0 | Q90: 0
A91: B/I/1/2/1 | B91: Utrzymanie Zarządu Transportu Miejskiego, w tym obsługa inwestycji | C91: 1 podzadanie | D91: NIE | E91: 600 | F91: 60004 | G91: 4428 | H91: Podróże służbowe zagraniczne | I91: SFUE/8/60 | P91: 0 | Q91: 0
A92: B/I/1/2/1 | B92: Utrzymanie Zarządu Transportu Miejskiego, w tym obsługa inwestycji | C92: 1 podzadanie | D92: NIE | E92: 600 | F92: 60004 | G92: 4428 | H92: Podróże służbowe zagraniczne | I92: SFUE/8/61 | P92: 0 | Q92: 0
A93: B/I/1/2/1 | B93: Utrzymanie Zarządu Transportu Miejskiego, w tym obsługa inwestycji | C93: 1 podzadanie | D93: NIE | E93: 600 | F93: 60004 | G93: 4429 | H93: Podróże służbowe zagraniczne | I93: SFUE/8/60 | P93: 0 | Q93: 0
A94: B/I/1/2/1 | B94: Utrzymanie Zarządu Transportu Miejskiego, w tym obsługa inwestycji | C94: 1 podzadanie | D94: NIE | E94: 600 | F94: 60004 | G94: 4429 | H94: Podróże służbowe zagraniczne | I94: SFUE/8/61 | P94: 0 | Q94: 0
A95: B/I/1/2/1 | B95: Utrzymanie Zarządu Transportu Miejskiego, w tym obsługa inwestycji | C95: 1 podzadanie | D95: NIE | E95: 600 | F95: 60004 | G95: 4430 | H95: Różne opłaty i składki | I95: GMMW | P95: 0 | Q95: 0
A96: B/I/1/2/1 | B96: Utrzymanie Zarządu Transportu Miejskiego, w tym obsługa inwestycji | C96: 1 podzadanie | D96: NIE | E96: 600 | F96: 60004 | G96: 4440 | H96: Odpisy na zakładowy fundusz świadczeń socjalnych | I96: GMMW | P96: 0 | Q96: 0
A97: B/I/1/2/1 | B97: Utrzymanie Zarządu Transportu Miejskiego, w tym obsługa inwestycji | C97: 1 podzadanie | D97: NIE | E97: 600 | F97: 60004 | G97: 4480 | H97: Podatek od nieruchomości | I97: GMMW | P97: 0 | Q97: 0
A98: B/I/1/2/1 | B98: Utrzymanie Zarządu Transportu Miejskiego, w tym obsługa inwestycji | C98: 1 podzadanie | D98: NIE | E98: 600 | F98: 60004 | G98: 4510 | H98: Opłaty na rzecz budżetu państwa | I98: GMMW | P98: 0 | Q98: 0
A99: B/I/1/2/1 | B99: Utrzymanie Zarządu Transportu Miejskiego, w tym obsługa inwestycji | C99: 1 podzadanie | D99: NIE | E99: 600 | F99: 60004 | G99: 4530 | H99: Podatek od towarów i usług (VAT) | I99: GMMW/C | P99: 0 | Q99: 0
A100: B/I/1/2/1 | B100: Utrzymanie Zarządu Transportu Miejskiego, w tym obsługa inwestycji | C100: 1 podzadanie | D100: NIE | E100: 600 | F100: 60004 | G100: 4530 | H100: Podatek od towarów i usług (VAT) | I100: GMMW | P100: 0 | Q100: 0
A101: B/I/1/2/1 | B101: Utrzymanie Zarządu Transportu Miejskiego, w tym obsługa inwestycji | C101: 1 podzadanie | D101: NIE | E101: 600 | F101: 60004 | G101: 4540 | H101: Składki do organizacji międzynarodowych | I101: GMMW | P101: 0 | Q101: 0
A102: B/I/1/2/1 | B102: Utrzymanie Zarządu Transportu Miejskiego, w tym obsługa inwestycji | C102: 1 podzadanie | D102: NIE | E102: 600 | F102: 60004 | G102: 4590 | H102: Kary i odszkodowania wypłacane na rzecz osób fizycznych | I102: GMMW | P102: 0 | Q102: 0
A103: B/I/1/2/1 | B103: Utrzymanie Zarządu Transportu Miejskiego, w tym obsługa inwestycji | C103: 1 podzadanie | D103: NIE | E103: 600 | F103: 60004 | G103: 4600 | H103: Kary, odszkodowania i grzywny wypłacane na rzecz osób prawnych i innych jednostek organizacyjnych | I103: GMMW | P103: 0 | Q103: 0
A104: B/I/1/2/1 | B104: Utrzymanie Zarządu Transportu Miejskiego, w tym obsługa inwestycji | C104: 1 podzadanie | D104: NIE | E104: 600 | F104: 60004 | G104: 4610 | H104: Koszty postępowania sądowego i prokuratorskiego | I104: GMMW | P104: 0 | Q104: 0
A105: B/I/1/2/1 | B105: Utrzymanie Zarządu Transportu Miejskiego, w tym obsługa inwestycji | C105: 1 podzadanie | D105: NIE | E105: 600 | F105: 60004 | G105: 4700 | H105: Szkolenia pracowników niebędących członkami korpusu służby cywilnej | I105: GMMW/C | P105: =J105+M105-L105 -> 0 | Q105: =K105+O105-N105 -> 0
A106: B/I/1/2/1 | B106: Utrzymanie Zarządu Transportu Miejskiego, w tym obsługa inwestycji | C106: 1 podzadanie | D106: NIE | E106: 600 | F106: 60004 | G106: 4700 | H106: Szkolenia pracowników niebędących członkami korpusu służby cywilnej | I106: GMMW | P106: 0 | Q106: 0
A107: B/I/1/2/1 | B107: Utrzymanie Zarządu Transportu Miejskiego, w tym obsługa inwestycji | C107: 1 podzadanie | D107: NIE | E107: 600 | F107: 60004 | G107: 4710 | H107: Wpłaty na PPK finansowane przez podmiot zatrudniający | I107: GMMW | P107: 0 | Q107: 0
A108: B/I/1/2/1 | B108: Utrzymanie Zarządu Transportu Miejskiego, w tym obsługa inwestycji | C108: 1 podzadanie | D108: NIE | E108: 600 | F108: 60004 | G108: 4718 | H108: Wpłaty na PPK finansowane przez podmiot zatrudniający | I108: SFUE/8/50 | P108: 0 | Q108: 0
A109: B/I/1/2/1 | B109: Utrzymanie Zarządu Transportu Miejskiego, w tym obsługa inwestycji | C109: 1 podzadanie | D109: NIE | E109: 600 | F109: 60004 | G109: 4718 | H109: Wpłaty na PPK finansowane przez podmiot zatrudniający | I109: SFUE/8/59 | P109: 0 | Q109: 0
A110: B/I/1/2/1 | B110: Utrzymanie Zarządu Transportu Miejskiego, w tym obsługa inwestycji | C110: 1 podzadanie | D110: NIE | E110: 600 | F110: 60004 | G110: 4718 | H110: Wpłaty na PPK finansowane przez podmiot zatrudniający | I110: SFUE/8/61 | P110: 0 | Q110: 0
A111: B/I/1/2/1 | B111: Utrzymanie Zarządu Transportu Miejskiego, w tym obsługa inwestycji | C111: 1 podzadanie | D111: NIE | E111: 600 | F111: 60004 | G111: 4719 | H111: Wpłaty na PPK finansowane przez podmiot zatrudniający | I111: SFUE/8/61 | P111: 0 | Q111: 0
A112: B/I/1/2/1 | B112: Utrzymanie Zarządu Transportu Miejskiego, w tym obsługa inwestycji | C112: 1 podzadanie | D112: NIE | E112: 600 | F112: 60004 | G112: 4950 | H112: Różnice kursowe | I112: GMMW | P112: 0 | Q112: 0
A113: B/I/1/2/2 | B113: Utrzymanie i obsługa systemu biletowego | C113: 2 podzadanie | D113: T | E113: 600 | F113: 60004 | J113: =SUM(J114) -> 0 | K113: 0 | L113: 0 | M113: 0 | N113: 0 | O113: 0 | P113: 0 | Q113: 0
A114: B/I/1/2/2 | B114: Utrzymanie i obsługa systemu biletowego | C114: 2 podzadanie | D114: NIE | E114: 600 | F114: 60004 | J114: =SUM(J115:J122) -> 0 | K114: 0 | L114: 0 | M114: 0 | N114: 0 | O114: 0 | P114: 0 | Q114: 0
A115: B/I/1/2/2 | B115: Utrzymanie i obsługa systemu biletowego | C115: 2 podzadanie | D115: NIE | E115: 600 | F115: 60004 | G115: 4190 | H115: Nagrody konkursowe | I115: GMMW | P115: =J115+M115-L115 -> 0 | Q115: =K115+O115-N115 -> 0
A116: B/I/1/2/2 | B116: Utrzymanie i obsługa systemu biletowego | C116: 2 podzadanie | D116: NIE | E116: 600 | F116: 60004 | G116: 4210 | H116: Zakup materiałów i wyposażenia | I116: GMMW | P116: 0 | Q116: 0
A117: B/I/1/2/2 | B117: Utrzymanie i obsługa systemu biletowego | C117: 2 podzadanie | D117: NIE | E117: 600 | F117: 60004 | G117: 4260 | H117: Zakup energii | I117: GMMW | P117: 0 | Q117: 0
A118: B/I/1/2/2 | B118: Utrzymanie i obsługa systemu biletowego | C118: 2 podzadanie | D118: NIE | E118: 600 | F118: 60004 | G118: 4270 | H118: Zakup usług remontowych | I118: GMMW | P118: 0 | Q118: 0
A119: B/I/1/2/2 | B119: Utrzymanie i obsługa systemu biletowego | C119: 2 podzadanie | D119: NIE | E119: 600 | F119: 60004 | G119: 4300 | H119: Zakup usług pozostałych | I119: GMMW | P119: 0 | Q119: 0
A120: B/I/1/2/2 | B120: Utrzymanie i obsługa systemu biletowego | C120: 2 podzadanie | D120: NIE | E120: 600 | F120: 60004 | G120: 4400 | H120: Opłaty za administrowanie i czynsze za budynki, lokale i pomieszczenia garażowe | I120: GMMW | P120: 0 | Q120: 0
A121: B/I/1/2/2 | B121: Utrzymanie i obsługa systemu biletowego | C121: 2 podzadanie | D121: NIE | E121: 600 | F121: 60004 | G121: 4530 | H121: Podatek od towarów i usług (VAT) | I121: GMMW | P121: 0 | Q121: 0
A122: B/I/1/2/2 | B122: Utrzymanie i obsługa systemu biletowego | C122: 2 podzadanie | D122: NIE | E122: 600 | F122: 60004 | G122: 4610 | H122: Koszty postępowania sądowego i prokuratorskiego | I122: GMMW | P122: 0 | Q122: 0
A123: B/I/1/2/3 | B123: Organizacja komunikacji, marketing, nadzór i kontrola ruchu | C123: 3 podzadanie | D123: T | J123: =SUM(J161,J154,J124) -> 0 | K123: 0 | L123: 0 | M123: 0 | N123: 0 | O123: 0 | P123: 0 | Q123: 0
A124: B/I/1/2/3 | B124: Organizacja komunikacji, marketing, nadzór i kontrola ruchu | C124: 3 podzadanie | D124: NIE | E124: 600 | F124: 60004 | J124: =SUM(J125:J153) -> 0 | K124: 0 | L124: 0 | M124: 0 | N124: 0 | O124: 0 | P124: 0 | Q124: 0
A125: B/I/1/2/3 | B125: Organizacja komunikacji, marketing, nadzór i kontrola ruchu | C125: 3 podzadanie | D125: NIE | E125: 600 | F125: 60004 | G125: 3020 | H125: Wydatki osobowe niezaliczone do wynagrodzeń | I125: GMMW | P125: =J125+M125-L125 -> 0 | Q125: =K125+O125-N125 -> 0
A126: B/I/1/2/3 | B126: Organizacja komunikacji, marketing, nadzór i kontrola ruchu | C126: 3 podzadanie | D126: NIE | E126: 600 | F126: 60004 | G126: 4210 | H126: Zakup materiałów i wyposażenia | I126: GMMW | P126: 0 | Q126: 0
A127: B/I/1/2/3 | B127: Organizacja komunikacji, marketing, nadzór i kontrola ruchu | C127: 3 podzadanie | D127: NIE | E127: 600 | F127: 60004 | G127: 4218 | H127: Zakup materiałów i wyposażenia | I127: SFUE/8/50 | P127: 0 | Q127: 0
A128: B/I/1/2/3 | B128: Organizacja komunikacji, marketing, nadzór i kontrola ruchu | C128: 3 podzadanie | D128: NIE | E128: 600 | F128: 60004 | G128: 4218 | H128: Zakup materiałów i wyposażenia | I128: SFUE/8/59 | P128: 0 | Q128: 0
A129: B/I/1/2/3 | B129: Organizacja komunikacji, marketing, nadzór i kontrola ruchu | C129: 3 podzadanie | D129: NIE | E129: 600 | F129: 60004 | G129: 4218 | H129: Zakup materiałów i wyposażenia | I129: SFUE/8/60 | P129: 0 | Q129: 0
A130: B/I/1/2/3 | B130: Organizacja komunikacji, marketing, nadzór i kontrola ruchu | C130: 3 podzadanie | D130: NIE | E130: 600 | F130: 60004 | G130: 4218 | H130: Zakup materiałów i wyposażenia | I130: SFUE/8/61 | P130: 0 | Q130: 0
A131: B/I/1/2/3 | B131: Organizacja komunikacji, marketing, nadzór i kontrola ruchu | C131: 3 podzadanie | D131: NIE | E131: 600 | F131: 60004 | G131: 4219 | H131: Zakup materiałów i wyposażenia | I131: SFUE/8/61 | P131: 0 | Q131: 0
A132: B/I/1/2/3 | B132: Organizacja komunikacji, marketing, nadzór i kontrola ruchu | C132: 3 podzadanie | D132: NIE | E132: 600 | F132: 60004 | G132: 4270 | H132: Zakup usług remontowych | I132: GMMW | P132: 0 | Q132: 0 | R132: =IF(SUM(J132:Q132)>0,"Tak","") ->  | S132: =IF(SUM(L132:O132)>0,"Tak","") ->  | T132: =IF(OR(J132<K132,P132<Q132,L132<N132,M132<O132),"błędny urząd","") ->  | U132: =IF(OR(J132<0,K132<0,P132<0,Q132<0),"ujemny plan","") -> 
A133: B/I/1/2/3 | B133: Organizacja komunikacji, marketing, nadzór i kontrola ruchu | C133: 3 podzadanie | D133: NIE | E133: 600 | F133: 60004 | G133: 4300 | H133: Zakup usług pozostałych | I133: GMMW | P133: 0 | Q133: 0
A134: B/I/1/2/3 | B134: Organizacja komunikacji, marketing, nadzór i kontrola ruchu | C134: 3 podzadanie | D134: NIE | E134: 600 | F134: 60004 | G134: 4307 | H134: Zakup usług pozostałych | I134: SFUE/23/6 | P134: 0 | Q134: 0
A135: B/I/1/2/3 | B135: Organizacja komunikacji, marketing, nadzór i kontrola ruchu | C135: 3 podzadanie | D135: NIE | E135: 600 | F135: 60004 | G135: 4308 | H135: Zakup usług pozostałych | I135: SFUE/8/50 | P135: 0 | Q135: 0
A136: B/I/1/2/3 | B136: Organizacja komunikacji, marketing, nadzór i kontrola ruchu | C136: 3 podzadanie | D136: NIE | E136: 600 | F136: 60004 | G136: 4308 | H136: Zakup usług pozostałych | I136: SFUE/8/59 | P136: 0 | Q136: 0
A137: B/I/1/2/3 | B137: Organizacja komunikacji, marketing, nadzór i kontrola ruchu | C137: 3 podzadanie | D137: NIE | E137: 600 | F137: 60004 | G137: 4308 | H137: Zakup usług pozostałych | I137: SFUE/8/60 | P137: 0 | Q137: 0
A138: B/I/1/2/3 | B138: Organizacja komunikacji, marketing, nadzór i kontrola ruchu | C138: 3 podzadanie | D138: NIE | E138: 600 | F138: 60004 | G138: 4308 | H138: Zakup usług pozostałych | I138: SFUE/8/61 | P138: 0 | Q138: 0
A139: B/I/1/2/3 | B139: Organizacja komunikacji, marketing, nadzór i kontrola ruchu | C139: 3 podzadanie | D139: NIE | E139: 600 | F139: 60004 | G139: 4309 | H139: Zakup usług pozostałych | I139: SFUE/23/6 | P139: 0 | Q139: 0
A140: B/I/1/2/3 | B140: Organizacja komunikacji, marketing, nadzór i kontrola ruchu | C140: 3 podzadanie | D140: NIE | E140: 600 | F140: 60004 | G140: 4309 | H140: Zakup usług pozostałych | I140: SFUE/8/61 | P140: 0 | Q140: 0
A141: B/I/1/2/3 | B141: Organizacja komunikacji, marketing, nadzór i kontrola ruchu | C141: 3 podzadanie | D141: NIE | E141: 600 | F141: 60004 | G141: 4388 | H141: Zakup usług obejmujących tłumaczenia | I141: SFUE/8/50 | P141: 0 | Q141: 0
A142: B/I/1/2/3 | B142: Organizacja komunikacji, marketing, nadzór i kontrola ruchu | C142: 3 podzadanie | D142: NIE | E142: 600 | F142: 60004 | G142: 4388 | H142: Zakup usług obejmujących tłumaczenia | I142: SFUE/8/59 | P142: 0 | Q142: 0
A143: B/I/1/2/3 | B143: Organizacja komunikacji, marketing, nadzór i kontrola ruchu | C143: 3 podzadanie | D143: NIE | E143: 600 | F143: 60004 | G143: 4388 | H143: Zakup usług obejmujących tłumaczenia | I143: SFUE/8/60 | P143: 0 | Q143: 0
A144: B/I/1/2/3 | B144: Organizacja komunikacji, marketing, nadzór i kontrola ruchu | C144: 3 podzadanie | D144: NIE | E144: 600 | F144: 60004 | G144: 4388 | H144: Zakup usług obejmujących tłumaczenia | I144: SFUE/8/61 | P144: 0 | Q144: 0
A145: B/I/1/2/3 | B145: Organizacja komunikacji, marketing, nadzór i kontrola ruchu | C145: 3 podzadanie | D145: NIE | E145: 600 | F145: 60004 | G145: 4389 | H145: Zakup usług obejmujących tłumaczenia | I145: SFUE/8/61 | P145: 0 | Q145: 0
A146: B/I/1/2/3 | B146: Organizacja komunikacji, marketing, nadzór i kontrola ruchu | C146: 3 podzadanie | D146: NIE | E146: 600 | F146: 60004 | G146: 4390 | H146: Zakup usług obejmujących wykonanie ekspertyz, analiz i opinii | I146: GMMW | P146: 0 | Q146: 0
A147: B/I/1/2/3 | B147: Organizacja komunikacji, marketing, nadzór i kontrola ruchu | C147: 3 podzadanie | D147: NIE | E147: 600 | F147: 60004 | G147: 4398 | H147: Zakup usług obejmujących wykonanie ekspertyz, analiz i opinii | I147: SFUE/8/50 | P147: 0 | Q147: 0
A148: B/I/1/2/3 | B148: Organizacja komunikacji, marketing, nadzór i kontrola ruchu | C148: 3 podzadanie | D148: NIE | E148: 600 | F148: 60004 | G148: 4398 | H148: Zakup usług obejmujących wykonanie ekspertyz, analiz i opinii | I148: SFUE/8/59 | P148: 0 | Q148: 0
A149: B/I/1/2/3 | B149: Organizacja komunikacji, marketing, nadzór i kontrola ruchu | C149: 3 podzadanie | D149: NIE | E149: 600 | F149: 60004 | G149: 4398 | H149: Zakup usług obejmujących wykonanie ekspertyz, analiz i opinii | I149: SFUE/8/60 | P149: 0 | Q149: 0
A150: B/I/1/2/3 | B150: Organizacja komunikacji, marketing, nadzór i kontrola ruchu | C150: 3 podzadanie | D150: NIE | E150: 600 | F150: 60004 | G150: 4398 | H150: Zakup usług obejmujących wykonanie ekspertyz, analiz i opinii | I150: SFUE/8/61 | P150: 0 | Q150: 0
A151: B/I/1/2/3 | B151: Organizacja komunikacji, marketing, nadzór i kontrola ruchu | C151: 3 podzadanie | D151: NIE | E151: 600 | F151: 60004 | G151: 4399 | H151: Zakup usług obejmujących wykonanie ekspertyz, analiz i opinii | I151: SFUE/8/61 | P151: 0 | Q151: 0
A152: B/I/1/2/3 | B152: Organizacja komunikacji, marketing, nadzór i kontrola ruchu | C152: 3 podzadanie | D152: NIE | E152: 600 | F152: 60004 | G152: 4530 | H152: Podatek od towarów i usług (VAT) | I152: GMMW | P152: 0 | Q152: 0
A153: B/I/1/2/3 | B153: Organizacja komunikacji, marketing, nadzór i kontrola ruchu | C153: 3 podzadanie | D153: NIE | E153: 600 | F153: 60004 | G153: 4530 | H153: Podatek od towarów i usług (VAT) | I153: SFUE/23/6 | P153: 0 | Q153: 0
A154: B/I/1/2/3 | B154: Organizacja komunikacji, marketing, nadzór i kontrola ruchu | C154: 3 podzadanie | D154: NIE | E154: 600 | F154: 60022 | J154: =SUM(J155:J160) -> 0 | K154: 0 | L154: 0 | M154: 0 | N154: 0 | O154: 0 | P154: 0 | Q154: 0
A155: B/I/1/2/3 | B155: Organizacja komunikacji, marketing, nadzór i kontrola ruchu | C155: 3 podzadanie | D155: NIE | E155: 600 | F155: 60022 | G155: 4210 | H155: Zakup materiałów i wyposażenia | I155: BO/24/00/0011 | P155: =J155+M155-L155 -> 0 | Q155: =K155+O155-N155 -> 0
A156: B/I/1/2/3 | B156: Organizacja komunikacji, marketing, nadzór i kontrola ruchu | C156: 3 podzadanie | D156: NIE | E156: 600 | F156: 60022 | G156: 4210 | H156: Zakup materiałów i wyposażenia | I156: GMMW | P156: 0 | Q156: 0
A157: B/I/1/2/3 | B157: Organizacja komunikacji, marketing, nadzór i kontrola ruchu | C157: 3 podzadanie | D157: NIE | E157: 600 | F157: 60022 | G157: 4270 | H157: Zakup usług remontowych | I157: GMMW | P157: 0 | Q157: 0
A158: B/I/1/2/3 | B158: Organizacja komunikacji, marketing, nadzór i kontrola ruchu | C158: 3 podzadanie | D158: NIE | E158: 600 | F158: 60022 | G158: 4300 | H158: Zakup usług pozostałych | I158: BO/22/00/0001 | P158: 0 | Q158: 0
A159: B/I/1/2/3 | B159: Organizacja komunikacji, marketing, nadzór i kontrola ruchu | C159: 3 podzadanie | D159: NIE | E159: 600 | F159: 60022 | G159: 4300 | H159: Zakup usług pozostałych | I159: GMMW | P159: 0 | Q159: 0
A160: B/I/1/2/3 | B160: Organizacja komunikacji, marketing, nadzór i kontrola ruchu | C160: 3 podzadanie | D160: NIE | E160: 600 | F160: 60022 | G160: 4430 | H160: Różne opłaty i składki | I160: GMMW | P160: 0 | Q160: 0
A161: B/I/1/2/3 | B161: Organizacja komunikacji, marketing, nadzór i kontrola ruchu | C161: 3 podzadanie | D161: NIE | E161: 600 | F161: 60095 | J161: =SUM(J162:J163) -> 0 | K161: 0 | L161: 0 | M161: 0 | N161: 0 | O161: 0 | P161: 0 | Q161: 0
A162: B/I/1/2/3 | B162: Organizacja komunikacji, marketing, nadzór i kontrola ruchu | C162: 3 podzadanie | D162: NIE | E162: 600 | F162: 60095 | G162: 4210 | H162: Zakup materiałów i wyposażenia | I162: GMMW | P162: =J162+M162-L162 -> 0 | Q162: =K162+O162-N162 -> 0
A163: B/I/1/2/3 | B163: Organizacja komunikacji, marketing, nadzór i kontrola ruchu | C163: 3 podzadanie | D163: NIE | E163: 600 | F163: 60095 | G163: 4300 | H163: Zakup usług pozostałych | I163: GMMW | P163: =J163+M163-L163 -> 0 | Q163: =K163+O163-N163 -> 0
A164: B/I/1/3 | B164: Utrzymanie infrastruktury przystankowej | C164: 3 zadanie | D164: T | J164: =SUM(J165) -> 0 | K164: 0 | L164: 0 | M164: 0 | N164: 0 | O164: 0 | P164: 0 | Q164: 0
A165: B/I/1/3 | B165: Utrzymanie infrastruktury przystankowej | C165: 3 zadanie | D165: NIE | E165: 600 | F165: 60020 | J165: =SUM(J166:J176) -> 0 | K165: 0 | L165: 0 | M165: 0 | N165: 0 | O165: 0 | P165: 0 | Q165: 0
A166: B/I/1/3 | B166: Utrzymanie infrastruktury przystankowej | C166: 3 zadanie | D166: NIE | E166: 600 | F166: 60020 | G166: 4210 | H166: Zakup materiałów i wyposażenia | I166: GMMW | P166: =J166+M166-L166 -> 0 | Q166: =K166+O166-N166 -> 0
A167: B/I/1/3 | B167: Utrzymanie infrastruktury przystankowej | C167: 3 zadanie | D167: NIE | E167: 600 | F167: 60020 | G167: 4270 | H167: Zakup usług remontowych | I167: GMMW/C | P167: 0 | Q167: 0
A168: B/I/1/3 | B168: Utrzymanie infrastruktury przystankowej | C168: 3 zadanie | D168: NIE | E168: 600 | F168: 60020 | G168: 4270 | H168: Zakup usług remontowych | I168: GMMW | P168: 0 | Q168: 0
A169: B/I/1/3 | B169: Utrzymanie infrastruktury przystankowej | C169: 3 zadanie | D169: NIE | E169: 600 | F169: 60020 | G169: 4270 | H169: Zakup usług remontowych | I169: GUPP | P169: 0 | Q169: 0
A170: B/I/1/3 | B170: Utrzymanie infrastruktury przystankowej | C170: 3 zadanie | D170: NIE | E170: 600 | F170: 60020 | G170: 4300 | H170: Zakup usług pozostałych | I170: BO/24/04/0085 | P170: 0 | Q170: 0
A171: B/I/1/3 | B171: Utrzymanie infrastruktury przystankowej | C171: 3 zadanie | D171: NIE | E171: 600 | F171: 60020 | G171: 4300 | H171: Zakup usług pozostałych | I171: GMMW/C | P171: 0 | Q171: 0
A172: B/I/1/3 | B172: Utrzymanie infrastruktury przystankowej | C172: 3 zadanie | D172: NIE | E172: 600 | F172: 60020 | G172: 4300 | H172: Zakup usług pozostałych | I172: GMMW | P172: 0 | Q172: 0
A173: B/I/1/3 | B173: Utrzymanie infrastruktury przystankowej | C173: 3 zadanie | D173: NIE | E173: 600 | F173: 60020 | G173: 4520 | H173: Opłaty na rzecz budżetów jednostek samorządu terytorialnego | I173: GMMW | P173: 0 | Q173: 0
A174: B/I/1/3 | B174: Utrzymanie infrastruktury przystankowej | C174: 3 zadanie | D174: NIE | E174: 600 | F174: 60020 | G174: 4530 | H174: Podatek od towarów i usług (VAT) | I174: BO/24/04/0085 | P174: 0 | Q174: 0
A175: B/I/1/3 | B175: Utrzymanie infrastruktury przystankowej | C175: 3 zadanie | D175: NIE | E175: 600 | F175: 60020 | G175: 4530 | H175: Podatek od towarów i usług (VAT) | I175: GMMW/C | P175: 0 | Q175: 0
A176: B/I/1/3 | B176: Utrzymanie infrastruktury przystankowej | C176: 3 zadanie | D176: NIE | E176: 600 | F176: 60020 | G176: 4530 | H176: Podatek od towarów i usług (VAT) | I176: GMMW | P176: 0 | Q176: 0
A177: B/I/1/4 | B177: Opracowania i analizy związane z komunikacją miejską | C177: 4 zadanie | D177: T | J177: =SUM(J184,J178) -> 0 | K177: 0 | L177: 0 | M177: 0 | N177: 0 | O177: 0 | P177: 0 | Q177: 0
A178: B/I/1/4 | B178: Opracowania i analizy związane z komunikacją miejską | C178: 4 zadanie | D178: NIE | E178: 600 | F178: 60004 | J178: =SUM(J179:J183) -> 0 | K178: 0 | L178: 0 | M178: 0 | N178: 0 | O178: 0 | P178: 0 | Q178: 0
A179: B/I/1/4 | B179: Opracowania i analizy związane z komunikacją miejską | C179: 4 zadanie | D179: NIE | E179: 600 | F179: 60004 | G179: 2310 | H179: Dotacja celowa przekazana gminie na zadania bieżące realizowane na podstawie porozumień (umów) między jednostkami samorządu terytorialnego | I179: GMMW | P179: =J179+M179-L179 -> 0 | Q179: =K179+O179-N179 -> 0
A180: B/I/1/4 | B180: Opracowania i analizy związane z komunikacją miejską | C180: 4 zadanie | D180: NIE | E180: 600 | F180: 60004 | G180: 4390 | H180: Zakup usług obejmujących wykonanie ekspertyz, analiz i opinii | I180: SFUE/8/57 | P180: =J180+M180-L180 -> 0 | Q180: =K180+O180-N180 -> 0
A181: B/I/1/4 | B181: Opracowania i analizy związane z komunikacją miejską | C181: 4 zadanie | D181: NIE | E181: 600 | F181: 60004 | G181: 4397 | H181: Zakup usług obejmujących wykonanie ekspertyz, analiz i opinii | I181: SFUE/8/57 | P181: =J181+M181-L181 -> 0 | Q181: =K181+O181-N181 -> 0
A182: B/I/1/4 | B182: Opracowania i analizy związane z komunikacją miejską | C182: 4 zadanie | D182: NIE | E182: 600 | F182: 60004 | G182: 4399 | H182: Zakup usług obejmujących wykonanie ekspertyz, analiz i opinii | I182: SFUE/8/57 | P182: =J182+M182-L182 -> 0 | Q182: =K182+O182-N182 -> 0
A183: B/I/1/4 | B183: Opracowania i analizy związane z komunikacją miejską | C183: 4 zadanie | D183: NIE | E183: 600 | F183: 60004 | G183: 4530 | H183: Podatek od towarów i usług (VAT) | I183: SFUE/8/57 | P183: =J183+M183-L183 -> 0 | Q183: =K183+O183-N183 -> 0
A184: B/I/1/4 | B184: Opracowania i analizy związane z komunikacją miejską | C184: 4 zadanie | D184: NIE | E184: 600 | F184: 60095 | J184: =SUM(J185:J186,J190:J192,J196) -> 0 | K184: 0 | L184: 0 | M184: 0 | N184: 0 | O184: 0 | P184: 0 | Q184: 0
A185: B/I/1/4 | B185: Opracowania i analizy związane z komunikacją miejską | C185: 4 zadanie | D185: NIE | E185: 600 | F185: 60095 | G185: 4300 | H185: Zakup usług pozostałych | I185: GMMW | P185: =J185+M185-L185 -> 0 | Q185: =K185+O185-N185 -> 0
A186: B/I/1/4 | B186: Opracowania i analizy związane z komunikacją miejską | C186: 4 zadanie | D186: NIE | E186: 600 | F186: 60095 | G186: 4309 | H186: Zakup usług pozostałych | J186: =SUM(J187:J189) -> 0 | K186: 0 | L186: 0 | M186: 0 | N186: 0 | O186: 0 | P186: 0 | Q186: 0
A187: B/I/1/4 | B187: Opracowania i analizy związane z komunikacją miejską | C187: 4 zadanie | D187: NIE | E187: 600 | F187: 60095 | G187: 4309 | H187: +000 | I187: SFUE/22/5 | P187: =J187+M187-L187 -> 0 | Q187: =K187+O187-N187 -> 0
A188: B/I/1/4 | B188: Opracowania i analizy związane z komunikacją miejską | C188: 4 zadanie | D188: NIE | E188: 600 | F188: 60095 | G188: 4309 | H188: +001 | I188: SFUE/22/5 | P188: =J188+M188-L188 -> 0 | Q188: =K188+O188-N188 -> 0
A189: B/I/1/4 | B189: Opracowania i analizy związane z komunikacją miejską | C189: 4 zadanie | D189: NIE | E189: 600 | F189: 60095 | G189: 4309 | H189: +002 | I189: SFUE/22/5 | P189: =J189+M189-L189 -> 0 | Q189: =K189+O189-N189 -> 0
A190: B/I/1/4 | B190: Opracowania i analizy związane z komunikacją miejską | C190: 4 zadanie | D190: NIE | E190: 600 | F190: 60095 | G190: 4390 | H190: Zakup usług obejmujących wykonanie ekspertyz, analiz i opinii | I190: GMMW | P190: =J190+M190-L190 -> 0 | Q190: =K190+O190-N190 -> 0
A191: B/I/1/4 | B191: Opracowania i analizy związane z komunikacją miejską | C191: 4 zadanie | D191: NIE | E191: 600 | F191: 60095 | G191: 4398 | H191: Zakup usług obejmujących wykonanie ekspertyz, analiz i opinii | I191: SFUE/22/5 | P191: =J191+M191-L191 -> 0 | Q191: =K191+O191-N191 -> 0
A192: B/I/1/4 | B192: Opracowania i analizy związane z komunikacją miejską | C192: 4 zadanie | D192: NIE | E192: 600 | F192: 60095 | G192: 4399 | H192: Zakup usług obejmujących wykonanie ekspertyz, analiz i opinii | J192: =SUM(J193:J195) -> 0 | K192: 0 | L192: 0 | M192: 0 | N192: 0 | O192: 0 | P192: 0 | Q192: 0
A193: B/I/1/4 | B193: Opracowania i analizy związane z komunikacją miejską | C193: 4 zadanie | D193: NIE | E193: 600 | F193: 60095 | G193: 4399 | H193: +000 | I193: SFUE/22/5 | P193: =J193+M193-L193 -> 0 | Q193: =K193+O193-N193 -> 0
A194: B/I/1/4 | B194: Opracowania i analizy związane z komunikacją miejską | C194: 4 zadanie | D194: NIE | E194: 600 | F194: 60095 | G194: 4399 | H194: +001 | I194: SFUE/22/5 | P194: =J194+M194-L194 -> 0 | Q194: =K194+O194-N194 -> 0
A195: B/I/1/4 | B195: Opracowania i analizy związane z komunikacją miejską | C195: 4 zadanie | D195: NIE | E195: 600 | F195: 60095 | G195: 4399 | H195: +002 | I195: SFUE/22/5 | P195: =J195+M195-L195 -> 0 | Q195: =K195+O195-N195 -> 0
A196: B/I/1/4 | B196: Opracowania i analizy związane z komunikacją miejską | C196: 4 zadanie | D196: NIE | E196: 600 | F196: 60095 | G196: 4530 | H196: Podatek od towarów i usług (VAT) | I196: GMMW | P196: =J196+M196-L196 -> 0 | Q196: =K196+O196-N196 -> 0 | R196: =IF(SUM(J196:Q196)>0,"Tak","") ->  | S196: =IF(SUM(L196:O196)>0,"Tak","") ->  | T196: =IF(OR(J196<K196,P196<Q196,L196<N196,M196<O196),"błędny urząd","") ->  | U196: =IF(OR(J196<0,K196<0,P196<0,Q196<0),"ujemny plan","") -> 
A197: I/2 | B197: Drogi i mosty | C197: 2 program | D197: T | J197: =SUM(J414,J329,J317,J296,J290,J283,J198) -> 17085900 | K197: 0 | L197: 81400 | M197: 163197 | N197: 0 | O197: 0 | P197: 17167697 | Q197: 0 | R197: Tak | S197: Tak
A198: B/I/2/1 | B198: Utrzymanie i remonty dróg | C198: 1 zadanie | D198: T | J198: =SUM(J272,J233,J199) -> 12692384 | K198: 0 | L198: 0 | M198: 0 | N198: 0 | O198: 0 | P198: 12692384 | Q198: 0 | R198: Tak
A199: B/I/2/1/1 | B199: Utrzymanie i remonty dróg gminnych | C199: 1 podzadanie | D199: T | J199: =SUM(J231,J200) -> 12542384 | K199: 0 | L199: 0 | M199: 0 | N199: 0 | O199: 0 | P199: 12542384 | Q199: 0 | R199: Tak
A200: B/I/2/1/1 | B200: Utrzymanie i remonty dróg gminnych | C200: 1 podzadanie | D200: NIE | E200: 600 | F200: 60016 | J200: =SUM(J201:J230) -> 12369384 | K200: 0 | L200: 0 | M200: 0 | N200: 0 | O200: 0 | P200: 12369384 | Q200: 0 | R200: Tak
... 4300 more rows

Sheet KLASYCZNY
A1: PLAN WYDATKÓW w UKŁADZIE KLASYCZNYM | L1: Załącznik Nr 5 do Uchwały Nr Rady Dzielnicy Śródmieście m. st. Warszawy z dnia
D3: =IF(OR(P4<>"",O4<>""),"Istnieją błędy","") ->  | E3: =E9029 -> 1238553758 | F3: 311750234 | G3: 562565 | H3: 322051 | I3: 413812 | J3: 42190 | K3: 1238313244 | L3: 311378612
A4: Dział | B4: Rozdział | C4: § | D4: Wyszczególnienie | E4: PLAN | F4: w tym Urząd m.st. Warszawy | G4: PLAN Zmiana[-] | H4: PLAN Zmiana[+] | I4: w tym Urząd Zmiana[-] | J4: w tym Urząd Zmiana[+] | K4: PLAN PO ZMIANIE | L4: w tym Urząd PO ZMIANIE | M4: Pozycja wypełniona | N4: Zmiany wypełnione | O4: =IF(COUNTIF(O5:O164,"błędny urząd")<>0,"ŹLE","") ->  | P4: =IF(COUNTIF(P5:P164,"ujemny plan")<>0,"ŹLE","") -> 
A5: 010 | D5: Rolnictwo i łowiectwo | E5: =SUM(E6,E15) -> 0 | F5: 0 | G5: 0 | H5: 0 | I5: 0 | J5: 0 | K5: 0 | L5: 0 | M5: =IF(SUM(E5:L5)>0,"Tak","") ->  | N5: =IF(SUM(G5:J5)>0,"Tak","") ->  | O5: =IF(OR(E5<F5,K5<L5,G5<I5,H5<J5),"błędny urząd","") ->  | P5: =IF(OR(E5<0,F5<0,K5<0,L5<0),"ujemny plan","") -> 
D6: WYDATKI BIEŻĄCE | E6: =SUM(E7,E10:E14) -> 0 | F6: 0 | G6: 0 | H6: 0 | I6: 0 | J6: 0 | K6: 0 | L6: 0
D7: Wydatki jednostek budżetowych w tym na: | E7: =SUM(E8:E9) -> 0 | F7: 0 | G7: 0 | H7: 0 | I7: 0 | J7: 0 | K7: 0 | L7: 0
D8: wynagrodzenia i składki od nich naliczane | E8: =SUM(E19,E33,E45,E57) -> 0 | F8: 0 | G8: 0 | H8: 0 | I8: 0 | J8: 0 | K8: 0 | L8: 0
D9: wydatki związane z realizacją ich zadań statutowych | E9: 0 | F9: 0 | G9: 0 | H9: 0 | I9: 0 | J9: 0 | K9: 0 | L9: 0
D10: Dotacje na zadania bieżące | E10: 0 | F10: 0 | G10: 0 | H10: 0 | I10: 0 | J10: 0 | K10: 0 | L10: 0
D11: Świadczenia na rzecz osób fizycznych | E11: 0 | F11: 0 | G11: 0 | H11: 0 | I11: 0 | J11: 0 | K11: 0 | L11: 0
D12: Wydatki na programy finansowane z UE | E12: 0 | F12: 0 | G12: 0 | H12: 0 | I12: 0 | J12: 0 | K12: 0 | L12: 0
D13: Obsługa długu | E13: 0 | F13: 0 | G13: 0 | H13: 0 | I13: 0 | J13: 0 | K13: 0 | L13: 0
D14: Poręczenia i gwarancje | E14: 0 | F14: 0 | G14: 0 | H14: 0 | I14: 0 | J14: 0 | K14: 0 | L14: 0
D15: WYDATKI MAJĄTKOWE | E15: 0 | F15: 0 | G15: 0 | H15: 0 | I15: 0 | J15: 0 | K15: 0 | L15: 0
B16: 01005 | D16: Prace geodezyjno - urządzeniowe na potrzeby rolnictwa | E16: =SUM(E17,E26) -> 0 | F16: 0 | G16: 0 | H16: 0 | I16: 0 | J16: 0 | K16: 0 | L16: 0
D17: WYDATKI BIEŻĄCE | E17: =SUM(E18,E21:E25) -> 0 | F17: 0 | G17: 0 | H17: 0 | I17: 0 | J17: 0 | K17: 0 | L17: 0
D18: Wydatki jednostek budżetowych w tym na: | E18: =SUM(E19:E20) -> 0 | F18: 0 | G18: 0 | H18: 0 | I18: 0 | J18: 0 | K18: 0 | L18: 0
D19: wynagrodzenia i składki od nich naliczane
D20: wydatki związane z realizacją ich zadań statutowych | E20: =0+E27 -> 0 | F20: 0 | G20: 0 | H20: 0 | I20: 0 | J20: 0 | K20: 0 | L20: 0
D21: Dotacje na zadania bieżące
D22: Świadczenia na rzecz osób fizycznych
D23: Wydatki na programy finansowane z UE
D24: Obsługa długu
D25: Poręczenia i gwarancje
D26: WYDATKI MAJĄTKOWE
C27: 4300 | D27: Zakup usług pozostałych | E27: =SUM(E28:E29) -> 0 | F27: 0 | G27: 0 | H27: 0 | I27: 0 | J27: 0 | K27: 0 | L27: 0
D28: Środki z budżetu państwa | E28: =0 -> 0 | F28: =0 -> 0 | G28: =0 -> 0 | H28: =0 -> 0 | I28: =0 -> 0 | J28: =0 -> 0 | K28: =E28-G28+H28 -> 0 | L28: =F28-I28+J28 -> 0 | M28: =IF(SUM(E28:L28)>0,"Tak","") ->  | N28: =IF(SUM(G28:J28)>0,"Tak","") ->  | O28: =IF(OR(E28<F28,K28<L28,G28<I28,H28<J28),"błędny urząd","") ->  | P28: =IF(OR(E28<0,F28<0,K28<0,L28<0),"ujemny plan","") -> 
D29: Środki z budżetu miasta | E29: =0 -> 0 | F29: =0 -> 0 | G29: =0 -> 0 | H29: =0 -> 0 | I29: =0 -> 0 | J29: =0 -> 0 | K29: =E29-G29+H29 -> 0 | L29: =F29-I29+J29 -> 0 | M29: =IF(SUM(E29:L29)>0,"Tak","") ->  | N29: =IF(SUM(G29:J29)>0,"Tak","") ->  | O29: =IF(OR(E29<F29,K29<L29,G29<I29,H29<J29),"błędny urząd","") ->  | P29: =IF(OR(E29<0,F29<0,K29<0,L29<0),"ujemny plan","") -> 
B30: 01030 | D30: Izby rolnicze | E30: =SUM(E31,E40) -> 0 | F30: 0 | G30: 0 | H30: 0 | I30: 0 | J30: 0 | K30: 0 | L30: 0
D31: WYDATKI BIEŻĄCE | E31: =SUM(E32,E35:E39) -> 0 | F31: 0 | G31: 0 | H31: 0 | I31: 0 | J31: 0 | K31: 0 | L31: 0
D32: Wydatki jednostek budżetowych w tym na: | E32: =SUM(E33:E34) -> 0 | F32: 0 | G32: 0 | H32: 0 | I32: 0 | J32: 0 | K32: 0 | L32: 0
D33: wynagrodzenia i składki od nich naliczane
D34: wydatki związane z realizacją ich zadań statutowych | E34: =0+E41 -> 0 | F34: 0 | G34: 0 | H34: 0 | I34: 0 | J34: 0 | K34: 0 | L34: 0
D35: Dotacje na zadania bieżące
D36: Świadczenia na rzecz osób fizycznych
D37: Wydatki na programy finansowane z UE
D38: Obsługa długu
D39: Poręczenia i gwarancje
D40: WYDATKI MAJĄTKOWE
C41: 2850 | D41: Wpłaty gmin na rzecz izb rolniczych w wysokości 2% uzyskanych wpływów z podatku rolnego | E41: =0+ZADANIOWY!J1963 -> 0 | F41: =0+ZADANIOWY!K1963 -> 0 | G41: =0+ZADANIOWY!L1963 -> 0 | H41: =0+ZADANIOWY!M1963 -> 0 | I41: =0+ZADANIOWY!N1963 -> 0 | J41: =0+ZADANIOWY!O1963 -> 0 | K41: 0 | L41: 0
B42: 01078 | D42: Izby rolnicze | E42: =SUM(E43,E52) -> 0 | F42: 0 | G42: 0 | H42: 0 | I42: 0 | J42: 0 | K42: 0 | L42: 0
D43: WYDATKI BIEŻĄCE | E43: =SUM(E44,E47:E51) -> 0 | F43: 0 | G43: 0 | H43: 0 | I43: 0 | J43: 0 | K43: 0 | L43: 0
D44: Wydatki jednostek budżetowych w tym na: | E44: =SUM(E45:E46) -> 0 | F44: 0 | G44: 0 | H44: 0 | I44: 0 | J44: 0 | K44: 0 | L44: 0
D45: wynagrodzenia i składki od nich naliczane
D46: wydatki związane z realizacją ich zadań statutowych
D47: Dotacje na zadania bieżące | E47: =0+E53 -> 0 | F47: 0 | G47: 0 | H47: 0 | I47: 0 | J47: 0 | K47: 0 | L47: 0
D48: Świadczenia na rzecz osób fizycznych
D49: Wydatki na programy finansowane z UE
D50: Obsługa długu
D51: Poręczenia i gwarancje
D52: WYDATKI MAJĄTKOWE
C53: 2710 | D53: Dotacja celowa na pomoc finansową udzielaną między jednostkami samorządu terytorialnego na dofinansowanie własnych zadań bieżących | E53: =0 -> 0 | F53: =0 -> 0 | G53: =0 -> 0 | H53: =0 -> 0 | I53: =0 -> 0 | J53: =0 -> 0 | K53: 0 | L53: 0
B54: 01095 | D54: Pozostała działalność | E54: =SUM(E55,E64) -> 0 | F54: 0 | G54: 0 | H54: 0 | I54: 0 | J54: 0 | K54: 0 | L54: 0
D55: WYDATKI BIEŻĄCE | E55: =SUM(E56,E59:E63) -> 0 | F55: 0 | G55: 0 | H55: 0 | I55: 0 | J55: 0 | K55: 0 | L55: 0
D56: Wydatki jednostek budżetowych w tym na: | E56: =SUM(E57:E58) -> 0 | F56: 0 | G56: 0 | H56: 0 | I56: 0 | J56: 0 | K56: 0 | L56: 0
D57: wynagrodzenia i składki od nich naliczane | E57: =0+E65+E68+E71+E80 -> 0 | F57: 0 | G57: 0 | H57: 0 | I57: 0 | J57: 0 | K57: 0 | L57: 0
D58: wydatki związane z realizacją ich zadań statutowych | E58: =0+E74+E77 -> 0 | F58: 0 | G58: 0 | H58: 0 | I58: 0 | J58: 0 | K58: 0 | L58: 0
D59: Dotacje na zadania bieżące
D60: Świadczenia na rzecz osób fizycznych
D61: Wydatki na programy finansowane z UE
D62: Obsługa długu
D63: Poręczenia i gwarancje
D64: WYDATKI MAJĄTKOWE
C65: 4010 | D65: Wynagrodzenia osobowe pracowników | E65: =SUM(E66:E67) -> 0 | F65: 0 | G65: 0 | H65: 0 | I65: 0 | J65: 0 | K65: 0 | L65: 0
D66: Środki z budżetu państwa | E66: =0 -> 0 | F66: =0 -> 0 | G66: =0 -> 0 | H66: =0 -> 0 | I66: =0 -> 0 | J66: =0 -> 0 | K66: 0 | L66: 0
D67: Środki z budżetu miasta | E67: =0 -> 0 | F67: =0 -> 0 | G67: =0 -> 0 | H67: =0 -> 0 | I67: =0 -> 0 | J67: =0 -> 0 | K67: 0 | L67: 0
C68: 4110 | D68: Składki na ubezpieczenia społeczne | E68: =SUM(E69:E70) -> 0 | F68: 0 | G68: 0 | H68: 0 | I68: 0 | J68: 0 | K68: 0 | L68: 0
D69: Środki z budżetu państwa | E69: =0 -> 0 | F69: =0 -> 0 | G69: =0 -> 0 | H69: =0 -> 0 | I69: =0 -> 0 | J69: =0 -> 0 | K69: 0 | L69: 0
D70: Środki z budżetu miasta | E70: =0 -> 0 | F70: =0 -> 0 | G70: =0 -> 0 | H70: =0 -> 0 | I70: =0 -> 0 | J70: =0 -> 0 | K70: 0 | L70: 0
C71: 4120 | D71: Składki na Fundusz Pracy oraz Fundusz Solidarnościowy | E71: =SUM(E72:E73) -> 0 | F71: 0 | G71: 0 | H71: 0 | I71: 0 | J71: 0 | K71: 0 | L71: 0
D72: Środki z budżetu państwa | E72: =0 -> 0 | F72: =0 -> 0 | G72: =0 -> 0 | H72: =0 -> 0 | I72: =0 -> 0 | J72: =0 -> 0 | K72: 0 | L72: 0
D73: Środki z budżetu miasta | E73: =0 -> 0 | F73: =0 -> 0 | G73: =0 -> 0 | H73: =0 -> 0 | I73: =0 -> 0 | J73: =0 -> 0 | K73: 0 | L73: 0
C74: 4300 | D74: Zakup usług pozostałych | E74: =SUM(E75:E76) -> 0 | F74: 0 | G74: 0 | H74: 0 | I74: 0 | J74: 0 | K74: 0 | L74: 0
D75: Środki z budżetu państwa | E75: =0+ZADANIOWY!J1956 -> 0 | F75: =0+ZADANIOWY!K1956 -> 0 | G75: =0+ZADANIOWY!L1956 -> 0 | H75: =0+ZADANIOWY!M1956 -> 0 | I75: =0+ZADANIOWY!N1956 -> 0 | J75: =0+ZADANIOWY!O1956 -> 0 | K75: 0 | L75: 0
D76: Środki z budżetu miasta | E76: =0+ZADANIOWY!J1957 -> 0 | F76: =0+ZADANIOWY!K1957 -> 0 | G76: =0+ZADANIOWY!L1957 -> 0 | H76: =0+ZADANIOWY!M1957 -> 0 | I76: =0+ZADANIOWY!N1957 -> 0 | J76: =0+ZADANIOWY!O1957 -> 0 | K76: 0 | L76: 0
C77: 4430 | D77: Różne opłaty i składki | E77: =SUM(E78:E79) -> 0 | F77: 0 | G77: 0 | H77: 0 | I77: 0 | J77: 0 | K77: 0 | L77: 0
D78: Środki z budżetu państwa | E78: =0+ZADANIOWY!J1959 -> 0 | F78: =0+ZADANIOWY!K1959 -> 0 | G78: =0+ZADANIOWY!L1959 -> 0 | H78: =0+ZADANIOWY!M1959 -> 0 | I78: =0+ZADANIOWY!N1959 -> 0 | J78: =0+ZADANIOWY!O1959 -> 0 | K78: 0 | L78: 0
D79: Środki z budżetu miasta | E79: =0+ZADANIOWY!J1960 -> 0 | F79: =0+ZADANIOWY!K1960 -> 0 | G79: =0+ZADANIOWY!L1960 -> 0 | H79: =0+ZADANIOWY!M1960 -> 0 | I79: =0+ZADANIOWY!N1960 -> 0 | J79: =0+ZADANIOWY!O1960 -> 0 | K79: 0 | L79: 0
C80: 4710 | D80: Wpłaty na PPK finansowane przez podmiot zatrudniający | E80: =SUM(E81:E82) -> 0 | F80: 0 | G80: 0 | H80: 0 | I80: 0 | J80: 0 | K80: 0 | L80: 0
D81: Środki z budżetu państwa | E81: =0 -> 0 | F81: =0 -> 0 | G81: =0 -> 0 | H81: =0 -> 0 | I81: =0 -> 0 | J81: =0 -> 0 | K81: 0 | L81: 0
D82: Środki z budżetu miasta | E82: =0 -> 0 | F82: =0 -> 0 | G82: =0 -> 0 | H82: =0 -> 0 | I82: =0 -> 0 | J82: =0 -> 0 | K82: 0 | L82: 0
A83: 020 | D83: Leśnictwo | E83: =SUM(E84,E93) -> 0 | F83: 0 | G83: 0 | H83: 0 | I83: 0 | J83: 0 | K83: 0 | L83: 0
D84: WYDATKI BIEŻĄCE | E84: =SUM(E85,E88:E92) -> 0 | F84: 0 | G84: 0 | H84: 0 | I84: 0 | J84: 0 | K84: 0 | L84: 0
D85: Wydatki jednostek budżetowych w tym na: | E85: =SUM(E86:E87) -> 0 | F85: 0 | G85: 0 | H85: 0 | I85: 0 | J85: 0 | K85: 0 | L85: 0
D86: wynagrodzenia i składki od nich naliczane | E86: =SUM(E97,E147) -> 0 | F86: 0 | G86: 0 | H86: 0 | I86: 0 | J86: 0 | K86: 0 | L86: 0
D87: wydatki związane z realizacją ich zadań statutowych | E87: 0 | F87: 0 | G87: 0 | H87: 0 | I87: 0 | J87: 0 | K87: 0 | L87: 0
D88: Dotacje na zadania bieżące | E88: 0 | F88: 0 | G88: 0 | H88: 0 | I88: 0 | J88: 0 | K88: 0 | L88: 0
D89: Świadczenia na rzecz osób fizycznych | E89: 0 | F89: 0 | G89: 0 | H89: 0 | I89: 0 | J89: 0 | K89: 0 | L89: 0
D90: Wydatki na programy finansowane z UE | E90: 0 | F90: 0 | G90: 0 | H90: 0 | I90: 0 | J90: 0 | K90: 0 | L90: 0
D91: Obsługa długu | E91: 0 | F91: 0 | G91: 0 | H91: 0 | I91: 0 | J91: 0 | K91: 0 | L91: 0
D92: Poręczenia i gwarancje | E92: 0 | F92: 0 | G92: 0 | H92: 0 | I92: 0 | J92: 0 | K92: 0 | L92: 0
D93: WYDATKI MAJĄTKOWE | E93: 0 | F93: 0 | G93: 0 | H93: 0 | I93: 0 | J93: 0 | K93: 0 | L93: 0 | M93: =IF(SUM(E93:L93)>0,"Tak","") ->  | N93: =IF(SUM(G93:J93)>0,"Tak","") ->  | O93: =IF(OR(E93<F93,K93<L93,G93<I93,H93<J93),"błędny urząd","") ->  | P93: =IF(OR(E93<0,F93<0,K93<0,L93<0),"ujemny plan","") -> 
B94: 02001 | D94: Gospodarka leśna | E94: =SUM(E95,E104) -> 0 | F94: 0 | G94: 0 | H94: 0 | I94: 0 | J94: 0 | K94: 0 | L94: 0
D95: WYDATKI BIEŻĄCE | E95: =SUM(E96,E99:E103) -> 0 | F95: 0 | G95: 0 | H95: 0 | I95: 0 | J95: 0 | K95: 0 | L95: 0
D96: Wydatki jednostek budżetowych w tym na: | E96: =SUM(E97:E98) -> 0 | F96: 0 | G96: 0 | H96: 0 | I96: 0 | J96: 0 | K96: 0 | L96: 0
D97: wynagrodzenia i składki od nich naliczane | E97: =0+E106+E107+E108+E109+E111+E143 -> 0 | F97: 0 | G97: 0 | H97: 0 | I97: 0 | J97: 0 | K97: 0 | L97: 0
D98: wydatki związane z realizacją ich zadań statutowych | E98: =0+E110+E112+E113+E116+E117+E118+E119+E120+E121+E124+E125+E126+E127+E128+E129+E130+E131+E132+E133+E134+E135+E136+E137+E138+E139+E140+E141+E142 -> 0 | F98: 0 | G98: 0 | H98: 0 | I98: 0 | J98: 0 | K98: 0 | L98: 0
D99: Dotacje na zadania bieżące
D100: Świadczenia na rzecz osób fizycznych | E100: =0+E105 -> 0 | F100: 0 | G100: 0 | H100: 0 | I100: 0 | J100: 0 | K100: 0 | L100: 0
D101: Wydatki na programy finansowane z UE | E101: =0+E114+E115+E122+E123 -> 0 | F101: 0 | G101: 0 | H101: 0 | I101: 0 | J101: 0 | K101: 0 | L101: 0
D102: Obsługa długu
D103: Poręczenia i gwarancje
D104: WYDATKI MAJĄTKOWE
C105: 3020 | D105: Wydatki osobowe niezaliczone do wynagrodzeń | E105: =0+ZADANIOWY!J1866 -> 0 | F105: =0+ZADANIOWY!K1866 -> 0 | G105: =0+ZADANIOWY!L1866 -> 0 | H105: =0+ZADANIOWY!M1866 -> 0 | I105: =0+ZADANIOWY!N1866 -> 0 | J105: =0+ZADANIOWY!O1866 -> 0 | K105: =E105-G105+H105 -> 0 | L105: =F105-I105+J105 -> 0
C106: 4010 | D106: Wynagrodzenia osobowe pracowników | E106: =0+ZADANIOWY!J1867 -> 0 | F106: =0+ZADANIOWY!K1867 -> 0 | G106: =0+ZADANIOWY!L1867 -> 0 | H106: =0+ZADANIOWY!M1867 -> 0 | I106: =0+ZADANIOWY!N1867 -> 0 | J106: =0+ZADANIOWY!O1867 -> 0 | K106: 0 | L106: 0
C107: 4040 | D107: Dodatkowe wynagrodzenie roczne | E107: =0+ZADANIOWY!J1868 -> 0 | F107: =0+ZADANIOWY!K1868 -> 0 | G107: =0+ZADANIOWY!L1868 -> 0 | H107: =0+ZADANIOWY!M1868 -> 0 | I107: =0+ZADANIOWY!N1868 -> 0 | J107: =0+ZADANIOWY!O1868 -> 0 | K107: 0 | L107: 0
C108: 4110 | D108: Składki na ubezpieczenia społeczne | E108: =0+ZADANIOWY!J1869 -> 0 | F108: =0+ZADANIOWY!K1869 -> 0 | G108: =0+ZADANIOWY!L1869 -> 0 | H108: =0+ZADANIOWY!M1869 -> 0 | I108: =0+ZADANIOWY!N1869 -> 0 | J108: =0+ZADANIOWY!O1869 -> 0 | K108: 0 | L108: 0
C109: 4120 | D109: Składki na Fundusz Pracy oraz Fundusz Solidarnościowy | E109: =0+ZADANIOWY!J1870 -> 0 | F109: =0+ZADANIOWY!K1870 -> 0 | G109: =0+ZADANIOWY!L1870 -> 0 | H109: =0+ZADANIOWY!M1870 -> 0 | I109: =0+ZADANIOWY!N1870 -> 0 | J109: =0+ZADANIOWY!O1870 -> 0 | K109: 0 | L109: 0
C110: 4140 | D110: Wpłaty na Państwowy Fundusz Rehabilitacji Osób Niepełnosprawnych | E110: =0+ZADANIOWY!J1871 -> 0 | F110: =0+ZADANIOWY!K1871 -> 0 | G110: =0+ZADANIOWY!L1871 -> 0 | H110: =0+ZADANIOWY!M1871 -> 0 | I110: =0+ZADANIOWY!N1871 -> 0 | J110: =0+ZADANIOWY!O1871 -> 0 | K110: 0 | L110: 0
C111: 4170 | D111: Wynagrodzenia bezosobowe | E111: =0+ZADANIOWY!J1872+ZADANIOWY!J1873+ZADANIOWY!J1874+ZADANIOWY!J1875+ZADANIOWY!J1876 -> 0 | F111: =0+ZADANIOWY!K1872+ZADANIOWY!K1873+ZADANIOWY!K1874+ZADANIOWY!K1875+ZADANIOWY!K1876 -> 0 | G111: =0+ZADANIOWY!L1872+ZADANIOWY!L1873+ZADANIOWY!L1874+ZADANIOWY!L1875+ZADANIOWY!L1876 -> 0 | H111: =0+ZADANIOWY!M1872+ZADANIOWY!M1873+ZADANIOWY!M1874+ZADANIOWY!M1875+ZADANIOWY!M1876 -> 0 | I111: =0+ZADANIOWY!N1872+ZADANIOWY!N1873+ZADANIOWY!N1874+ZADANIOWY!N1875+ZADANIOWY!N1876 -> 0 | J111: =0+ZADANIOWY!O1872+ZADANIOWY!O1873+ZADANIOWY!O1874+ZADANIOWY!O1875+ZADANIOWY!O1876 -> 0 | K111: 0 | L111: 0
C112: 4190 | D112: Nagrody konkursowe | E112: =0 -> 0 | F112: =0 -> 0 | G112: =0 -> 0 | H112: =0 -> 0 | I112: =0 -> 0 | J112: =0 -> 0 | K112: 0 | L112: 0
C113: 4210 | D113: Zakup materiałów i wyposażenia | E113: =0+ZADANIOWY!J1877+ZADANIOWY!J1878+ZADANIOWY!J1879+ZADANIOWY!J1880+ZADANIOWY!J1881+ZADANIOWY!J1882+ZADANIOWY!J1883 -> 0 | F113: =0+ZADANIOWY!K1877+ZADANIOWY!K1878+ZADANIOWY!K1879+ZADANIOWY!K1880+ZADANIOWY!K1881+ZADANIOWY!K1882+ZADANIOWY!K1883 -> 0 | G113: =0+ZADANIOWY!L1877+ZADANIOWY!L1878+ZADANIOWY!L1879+ZADANIOWY!L1880+ZADANIOWY!L1881+ZADANIOWY!L1882+ZADANIOWY!L1883 -> 0 | H113: =0+ZADANIOWY!M1877+ZADANIOWY!M1878+ZADANIOWY!M1879+ZADANIOWY!M1880+ZADANIOWY!M1881+ZADANIOWY!M1882+ZADANIOWY!M1883 -> 0 | I113: =0+ZADANIOWY!N1877+ZADANIOWY!N1878+ZADANIOWY!N1879+ZADANIOWY!N1880+ZADANIOWY!N1881+ZADANIOWY!N1882+ZADANIOWY!N1883 -> 0 | J113: =0+ZADANIOWY!O1877+ZADANIOWY!O1878+ZADANIOWY!O1879+ZADANIOWY!O1880+ZADANIOWY!O1881+ZADANIOWY!O1882+ZADANIOWY!O1883 -> 0 | K113: 0 | L113: 0
C114: 4217 | D114: Zakup materiałów i wyposażenia | E114: =0 -> 0 | F114: =0 -> 0 | G114: =0 -> 0 | H114: =0 -> 0 | I114: =0 -> 0 | J114: =0 -> 0 | K114: 0 | L114: 0
C115: 4219 | D115: Zakup materiałów i wyposażenia | E115: =0 -> 0 | F115: =0 -> 0 | G115: =0 -> 0 | H115: =0 -> 0 | I115: =0 -> 0 | J115: =0 -> 0 | K115: 0 | L115: 0
C116: 4220 | D116: Zakup środków żywności | E116: =0+ZADANIOWY!J1884+ZADANIOWY!J1885 -> 0 | F116: =0+ZADANIOWY!K1884+ZADANIOWY!K1885 -> 0 | G116: =0+ZADANIOWY!L1884+ZADANIOWY!L1885 -> 0 | H116: =0+ZADANIOWY!M1884+ZADANIOWY!M1885 -> 0 | I116: =0+ZADANIOWY!N1884+ZADANIOWY!N1885 -> 0 | J116: =0+ZADANIOWY!O1884+ZADANIOWY!O1885 -> 0 | K116: 0 | L116: 0
C117: 4240 | D117: Zakup środków dydaktycznych i książek | E117: =0 -> 0 | F117: =0 -> 0 | G117: =0 -> 0 | H117: =0 -> 0 | I117: =0 -> 0 | J117: =0 -> 0 | K117: 0 | L117: 0
C118: 4260 | D118: Zakup energii | E118: =0+ZADANIOWY!J1886 -> 0 | F118: =0+ZADANIOWY!K1886 -> 0 | G118: =0+ZADANIOWY!L1886 -> 0 | H118: =0+ZADANIOWY!M1886 -> 0 | I118: =0+ZADANIOWY!N1886 -> 0 | J118: =0+ZADANIOWY!O1886 -> 0 | K118: 0 | L118: 0
C119: 4270 | D119: Zakup usług remontowych | E119: =0+ZADANIOWY!J1887 -> 0 | F119: =0+ZADANIOWY!K1887 -> 0 | G119: =0+ZADANIOWY!L1887 -> 0 | H119: =0+ZADANIOWY!M1887 -> 0 | I119: =0+ZADANIOWY!N1887 -> 0 | J119: =0+ZADANIOWY!O1887 -> 0 | K119: 0 | L119: 0
C120: 4280 | D120: Zakup usług zdrowotnych | E120: =0+ZADANIOWY!J1888 -> 0 | F120: =0+ZADANIOWY!K1888 -> 0 | G120: =0+ZADANIOWY!L1888 -> 0 | H120: =0+ZADANIOWY!M1888 -> 0 | I120: =0+ZADANIOWY!N1888 -> 0 | J120: =0+ZADANIOWY!O1888 -> 0 | K120: 0 | L120: 0
C121: 4300 | D121: Zakup usług pozostałych | E121: =0+ZADANIOWY!J1889+ZADANIOWY!J1890+ZADANIOWY!J1891+ZADANIOWY!J1892+ZADANIOWY!J1893+ZADANIOWY!J1894+ZADANIOWY!J1895 -> 0 | F121: =0+ZADANIOWY!K1889+ZADANIOWY!K1890+ZADANIOWY!K1891+ZADANIOWY!K1892+ZADANIOWY!K1893+ZADANIOWY!K1894+ZADANIOWY!K1895 -> 0 | G121: =0+ZADANIOWY!L1889+ZADANIOWY!L1890+ZADANIOWY!L1891+ZADANIOWY!L1892+ZADANIOWY!L1893+ZADANIOWY!L1894+ZADANIOWY!L1895 -> 0 | H121: =0+ZADANIOWY!M1889+ZADANIOWY!M1890+ZADANIOWY!M1891+ZADANIOWY!M1892+ZADANIOWY!M1893+ZADANIOWY!M1894+ZADANIOWY!M1895 -> 0 | I121: =0+ZADANIOWY!N1889+ZADANIOWY!N1890+ZADANIOWY!N1891+ZADANIOWY!N1892+ZADANIOWY!N1893+ZADANIOWY!N1894+ZADANIOWY!N1895 -> 0 | J121: =0+ZADANIOWY!O1889+ZADANIOWY!O1890+ZADANIOWY!O1891+ZADANIOWY!O1892+ZADANIOWY!O1893+ZADANIOWY!O1894+ZADANIOWY!O1895 -> 0 | K121: 0 | L121: 0
C122: 4307 | D122: Zakup usług pozostałych | E122: =0 -> 0 | F122: =0 -> 0 | G122: =0 -> 0 | H122: =0 -> 0 | I122: =0 -> 0 | J122: =0 -> 0 | K122: 0 | L122: 0
C123: 4309 | D123: Zakup usług pozostałych | E123: =0 -> 0 | F123: =0 -> 0 | G123: =0 -> 0 | H123: =0 -> 0 | I123: =0 -> 0 | J123: =0 -> 0 | K123: 0 | L123: 0
C124: 4360 | D124: Opłaty z tytułu zakupu usług telekomunikacyjnych | E124: =0+ZADANIOWY!J1896 -> 0 | F124: =0+ZADANIOWY!K1896 -> 0 | G124: =0+ZADANIOWY!L1896 -> 0 | H124: =0+ZADANIOWY!M1896 -> 0 | I124: =0+ZADANIOWY!N1896 -> 0 | J124: =0+ZADANIOWY!O1896 -> 0 | K124: 0 | L124: 0
C125: 4380 | D125: Zakup usług obejmujących tłumaczenia | E125: =0 -> 0 | F125: =0 -> 0 | G125: =0 -> 0 | H125: =0 -> 0 | I125: =0 -> 0 | J125: =0 -> 0 | K125: 0 | L125: 0
C126: 4390 | D126: Zakup usług obejmujących wykonanie ekspertyz, analiz i opinii | E126: =0+ZADANIOWY!J1897+ZADANIOWY!J1898 -> 0 | F126: =0+ZADANIOWY!K1897+ZADANIOWY!K1898 -> 0 | G126: =0+ZADANIOWY!L1897+ZADANIOWY!L1898 -> 0 | H126: =0+ZADANIOWY!M1897+ZADANIOWY!M1898 -> 0 | I126: =0+ZADANIOWY!N1897+ZADANIOWY!N1898 -> 0 | J126: =0+ZADANIOWY!O1897+ZADANIOWY!O1898 -> 0 | K126: 0 | L126: 0
C127: 4400 | D127: Opłaty za administrowanie i czynsze za budynki, lokale i pomieszczenia garażowe | E127: =0+ZADANIOWY!J1899 -> 0 | F127: =0+ZADANIOWY!K1899 -> 0 | G127: =0+ZADANIOWY!L1899 -> 0 | H127: =0+ZADANIOWY!M1899 -> 0 | I127: =0+ZADANIOWY!N1899 -> 0 | J127: =0+ZADANIOWY!O1899 -> 0 | K127: 0 | L127: 0
C128: 4410 | D128: Podróże służbowe krajowe | E128: =0+ZADANIOWY!J1900 -> 0 | F128: =0+ZADANIOWY!K1900 -> 0 | G128: =0+ZADANIOWY!L1900 -> 0 | H128: =0+ZADANIOWY!M1900 -> 0 | I128: =0+ZADANIOWY!N1900 -> 0 | J128: =0+ZADANIOWY!O1900 -> 0 | K128: 0 | L128: 0
C129: 4420 | D129: Podróże służbowe zagraniczne | E129: =0 -> 0 | F129: =0 -> 0 | G129: =0 -> 0 | H129: =0 -> 0 | I129: =0 -> 0 | J129: =0 -> 0 | K129: 0 | L129: 0
C130: 4430 | D130: Różne opłaty i składki | E130: =0+ZADANIOWY!J1901 -> 0 | F130: =0+ZADANIOWY!K1901 -> 0 | G130: =0+ZADANIOWY!L1901 -> 0 | H130: =0+ZADANIOWY!M1901 -> 0 | I130: =0+ZADANIOWY!N1901 -> 0 | J130: =0+ZADANIOWY!O1901 -> 0 | K130: 0 | L130: 0
C131: 4440 | D131: Odpisy na zakładowy fundusz świadczeń socjalnych | E131: =0+ZADANIOWY!J1902 -> 0 | F131: =0+ZADANIOWY!K1902 -> 0 | G131: =0+ZADANIOWY!L1902 -> 0 | H131: =0+ZADANIOWY!M1902 -> 0 | I131: =0+ZADANIOWY!N1902 -> 0 | J131: =0+ZADANIOWY!O1902 -> 0 | K131: 0 | L131: 0
C132: 4480 | D132: Podatek od nieruchomości | E132: =0+ZADANIOWY!J1903 -> 0 | F132: =0+ZADANIOWY!K1903 -> 0 | G132: =0+ZADANIOWY!L1903 -> 0 | H132: =0+ZADANIOWY!M1903 -> 0 | I132: =0+ZADANIOWY!N1903 -> 0 | J132: =0+ZADANIOWY!O1903 -> 0 | K132: 0 | L132: 0
C133: 4500 | D133: Pozostałe podatki na rzecz budżetów jednostek samorządu terytorialnego | E133: =0+ZADANIOWY!J1904 -> 0 | F133: =0+ZADANIOWY!K1904 -> 0 | G133: =0+ZADANIOWY!L1904 -> 0 | H133: =0+ZADANIOWY!M1904 -> 0 | I133: =0+ZADANIOWY!N1904 -> 0 | J133: =0+ZADANIOWY!O1904 -> 0 | K133: 0 | L133: 0
C134: 4510 | D134: Opłaty na rzecz budżetu państwa | E134: =0+ZADANIOWY!J1905 -> 0 | F134: =0+ZADANIOWY!K1905 -> 0 | G134: =0+ZADANIOWY!L1905 -> 0 | H134: =0+ZADANIOWY!M1905 -> 0 | I134: =0+ZADANIOWY!N1905 -> 0 | J134: =0+ZADANIOWY!O1905 -> 0 | K134: 0 | L134: 0
C135: 4520 | D135: Opłaty na rzecz budżetów jednostek samorządu terytorialnego | E135: =0+ZADANIOWY!J1906 -> 0 | F135: =0+ZADANIOWY!K1906 -> 0 | G135: =0+ZADANIOWY!L1906 -> 0 | H135: =0+ZADANIOWY!M1906 -> 0 | I135: =0+ZADANIOWY!N1906 -> 0 | J135: =0+ZADANIOWY!O1906 -> 0 | K135: 0 | L135: 0
C136: 4530 | D136: Podatek od towarów i usług (VAT) | E136: =0+ZADANIOWY!J1907 -> 0 | F136: =0+ZADANIOWY!K1907 -> 0 | G136: =0+ZADANIOWY!L1907 -> 0 | H136: =0+ZADANIOWY!M1907 -> 0 | I136: =0+ZADANIOWY!N1907 -> 0 | J136: =0+ZADANIOWY!O1907 -> 0 | K136: 0 | L136: 0
C137: 4580 | D137: Pozostałe odsetki | E137: =0+ZADANIOWY!J1908 -> 0 | F137: =0+ZADANIOWY!K1908 -> 0 | G137: =0+ZADANIOWY!L1908 -> 0 | H137: =0+ZADANIOWY!M1908 -> 0 | I137: =0+ZADANIOWY!N1908 -> 0 | J137: =0+ZADANIOWY!O1908 -> 0 | K137: 0 | L137: 0
C138: 4590 | D138: Kary i odszkodowania wypłacane na rzecz osób fizycznych | E138: =0+ZADANIOWY!J1909 -> 0 | F138: =0+ZADANIOWY!K1909 -> 0 | G138: =0+ZADANIOWY!L1909 -> 0 | H138: =0+ZADANIOWY!M1909 -> 0 | I138: =0+ZADANIOWY!N1909 -> 0 | J138: =0+ZADANIOWY!O1909 -> 0 | K138: 0 | L138: 0
C139: 4600 | D139: Kary, odszkodowania i grzywny wypłacane na rzecz osób prawnych i innych jednostek organizacyjnych | E139: =0 -> 0 | F139: =0 -> 0 | G139: =0 -> 0 | H139: =0 -> 0 | I139: =0 -> 0 | J139: =0 -> 0 | K139: 0 | L139: 0
C140: 4610 | D140: Koszty postępowania sądowego i prokuratorskiego | E140: =0+ZADANIOWY!J1910 -> 0 | F140: =0+ZADANIOWY!K1910 -> 0 | G140: =0+ZADANIOWY!L1910 -> 0 | H140: =0+ZADANIOWY!M1910 -> 0 | I140: =0+ZADANIOWY!N1910 -> 0 | J140: =0+ZADANIOWY!O1910 -> 0 | K140: 0 | L140: 0
C141: 4680 | D141: Odsetki od nieterminowych wpłat podatku od towarów i usług (VAT) | E141: =0 -> 0 | F141: =0 -> 0 | G141: =0 -> 0 | H141: =0 -> 0 | I141: =0 -> 0 | J141: =0 -> 0 | K141: 0 | L141: 0
C142: 4700 | D142: Szkolenia pracowników niebędących członkami korpusu służby cywilnej | E142: =0+ZADANIOWY!J1911 -> 0 | F142: =0+ZADANIOWY!K1911 -> 0 | G142: =0+ZADANIOWY!L1911 -> 0 | H142: =0+ZADANIOWY!M1911 -> 0 | I142: =0+ZADANIOWY!N1911 -> 0 | J142: =0+ZADANIOWY!O1911 -> 0 | K142: 0 | L142: 0
C143: 4710 | D143: Wpłaty na PPK finansowane przez podmiot zatrudniający | E143: =0+ZADANIOWY!J1912 -> 0 | F143: =0+ZADANIOWY!K1912 -> 0 | G143: =0+ZADANIOWY!L1912 -> 0 | H143: =0+ZADANIOWY!M1912 -> 0 | I143: =0+ZADANIOWY!N1912 -> 0 | J143: =0+ZADANIOWY!O1912 -> 0 | K143: 0 | L143: 0
B144: 02095 | D144: Pozostała działalność | E144: =SUM(E145,E154) -> 0 | F144: 0 | G144: 0 | H144: 0 | I144: 0 | J144: 0 | K144: 0 | L144: 0
D145: WYDATKI BIEŻĄCE | E145: =SUM(E146,E149:E153) -> 0 | F145: 0 | G145: 0 | H145: 0 | I145: 0 | J145: 0 | K145: 0 | L145: 0
D146: Wydatki jednostek budżetowych w tym na: | E146: =SUM(E147:E148) -> 0 | F146: 0 | G146: 0 | H146: 0 | I146: 0 | J146: 0 | K146: 0 | L146: 0
D147: wynagrodzenia i składki od nich naliczane | E147: =0+E155+E156+E157 -> 0 | F147: 0 | G147: 0 | H147: 0 | I147: 0 | J147: 0 | K147: 0 | L147: 0
D148: wydatki związane z realizacją ich zadań statutowych | E148: =0+E158+E159+E160 -> 0 | F148: 0 | G148: 0 | H148: 0 | I148: 0 | J148: 0 | K148: 0 | L148: 0
D149: Dotacje na zadania bieżące
D150: Świadczenia na rzecz osób fizycznych
D151: Wydatki na programy finansowane z UE
D152: Obsługa długu
D153: Poręczenia i gwarancje
D154: WYDATKI MAJĄTKOWE
C155: 4110 | D155: Składki na ubezpieczenia społeczne | E155: =0 -> 0 | F155: =0 -> 0 | G155: =0 -> 0 | H155: =0 -> 0 | I155: =0 -> 0 | J155: =0 -> 0 | K155: 0 | L155: 0
C156: 4120 | D156: Składki na Fundusz Pracy oraz Fundusz Solidarnościowy | E156: =0 -> 0 | F156: =0 -> 0 | G156: =0 -> 0 | H156: =0 -> 0 | I156: =0 -> 0 | J156: =0 -> 0 | K156: 0 | L156: 0
C157: 4170 | D157: Wynagrodzenia bezosobowe | E157: =0 -> 0 | F157: =0 -> 0 | G157: =0 -> 0 | H157: =0 -> 0 | I157: =0 -> 0 | J157: =0 -> 0 | K157: =E157-G157+H157 -> 0 | L157: =F157-I157+J157 -> 0 | M157: =IF(SUM(E157:L157)>0,"Tak","") ->  | N157: =IF(SUM(G157:J157)>0,"Tak","") ->  | O157: =IF(OR(E157<F157,K157<L157,G157<I157,H157<J157),"błędny urząd","") ->  | P157: =IF(OR(E157<0,F157<0,K157<0,L157<0),"ujemny plan","") -> 
C158: 4270 | D158: Zakup usług remontowych | E158: =0 -> 0 | F158: =0 -> 0 | G158: =0 -> 0 | H158: =0 -> 0 | I158: =0 -> 0 | J158: =0 -> 0 | K158: 0 | L158: 0
C159: 4300 | D159: Zakup usług pozostałych | E159: =0 -> 0 | F159: =0 -> 0 | G159: =0 -> 0 | H159: =0 -> 0 | I159: =0 -> 0 | J159: =0 -> 0 | K159: 0 | L159: 0
C160: 4500 | D160: Pozostałe podatki na rzecz budżetów jednostek samorządu terytorialnego | E160: =0 -> 0 | F160: =0 -> 0 | G160: =0 -> 0 | H160: =0 -> 0 | I160: =0 -> 0 | J160: =0 -> 0 | K160: 0 | L160: 0
A161: 400 | D161: Wytwarzanie i zaopatrywanie w energię elektryczną, gaz i wodę | E161: =SUM(E162,E171) -> 335408 | F161: 0 | G161: 0 | H161: 0 | I161: 0 | J161: 0 | K161: 335408 | L161: 0 | M161: Tak
D162: WYDATKI BIEŻĄCE | E162: =SUM(E163,E166:E170) -> 335408 | F162: 0 | G162: 0 | H162: 0 | I162: 0 | J162: 0 | K162: 335408 | L162: 0 | M162: Tak
D163: Wydatki jednostek budżetowych w tym na: | E163: =SUM(E164:E165) -> 335408 | F163: 0 | G163: 0 | H163: 0 | I163: 0 | J163: 0 | K163: 335408 | L163: 0 | M163: Tak
D164: wynagrodzenia i składki od nich naliczane | E164: =SUM(E175,E204) -> 0 | F164: 0 | G164: 0 | H164: 0 | I164: 0 | J164: 0 | K164: 0 | L164: 0
D165: wydatki związane z realizacją ich zadań statutowych | E165: 335408 | F165: 0 | G165: 0 | H165: 0 | I165: 0 | J165: 0 | K165: 335408 | L165: 0 | M165: Tak
D166: Dotacje na zadania bieżące | E166: 0 | F166: 0 | G166: 0 | H166: 0 | I166: 0 | J166: 0 | K166: 0 | L166: 0
D167: Świadczenia na rzecz osób fizycznych | E167: 0 | F167: 0 | G167: 0 | H167: 0 | I167: 0 | J167: 0 | K167: 0 | L167: 0
D168: Wydatki na programy finansowane z UE | E168: 0 | F168: 0 | G168: 0 | H168: 0 | I168: 0 | J168: 0 | K168: 0 | L168: 0
D169: Obsługa długu | E169: 0 | F169: 0 | G169: 0 | H169: 0 | I169: 0 | J169: 0 | K169: 0 | L169: 0
D170: Poręczenia i gwarancje | E170: 0 | F170: 0 | G170: 0 | H170: 0 | I170: 0 | J170: 0 | K170: 0 | L170: 0
D171: WYDATKI MAJĄTKOWE | E171: 0 | F171: 0 | G171: 0 | H171: 0 | I171: 0 | J171: 0 | K171: 0 | L171: 0
B172: 40002 | D172: Dostarczanie wody | E172: =SUM(E173,E182) -> 335408 | F172: 0 | G172: 0 | H172: 0 | I172: 0 | J172: 0 | K172: 335408 | L172: 0 | M172: Tak
D173: WYDATKI BIEŻĄCE | E173: =SUM(E174,E177:E181) -> 335408 | F173: 0 | G173: 0 | H173: 0 | I173: 0 | J173: 0 | K173: 335408 | L173: 0 | M173: Tak
D174: Wydatki jednostek budżetowych w tym na: | E174: =SUM(E175:E176) -> 335408 | F174: 0 | G174: 0 | H174: 0 | I174: 0 | J174: 0 | K174: 335408 | L174: 0 | M174: Tak
D175: wynagrodzenia i składki od nich naliczane | E175: =0+E183+E184+E185 -> 0 | F175: 0 | G175: 0 | H175: 0 | I175: 0 | J175: 0 | K175: 0 | L175: 0
D176: wydatki związane z realizacją ich zadań statutowych | E176: =0+E186+E187+E188+E189+E190+E191+E192+E193+E194+E195+E196+E197+E198 -> 335408 | F176: 0 | G176: 0 | H176: 0 | I176: 0 | J176: 0 | K176: 335408 | L176: 0 | M176: Tak
D177: Dotacje na zadania bieżące
D178: Świadczenia na rzecz osób fizycznych
D179: Wydatki na programy finansowane z UE
D180: Obsługa długu
D181: Poręczenia i gwarancje
D182: WYDATKI MAJĄTKOWE | E182: =0+E199+E200 -> 0 | F182: 0 | G182: 0 | H182: 0 | I182: 0 | J182: 0 | K182: 0 | L182: 0
C183: 4110 | D183: Składki na ubezpieczenia społeczne | E183: =0+ZADANIOWY!J1575 -> 0 | F183: =0+ZADANIOWY!K1575 -> 0 | G183: =0+ZADANIOWY!L1575 -> 0 | H183: =0+ZADANIOWY!M1575 -> 0 | I183: =0+ZADANIOWY!N1575 -> 0 | J183: =0+ZADANIOWY!O1575 -> 0 | K183: 0 | L183: 0
C184: 4120 | D184: Składki na Fundusz Pracy oraz Fundusz Solidarnościowy | E184: =0+ZADANIOWY!J1576 -> 0 | F184: =0+ZADANIOWY!K1576 -> 0 | G184: =0+ZADANIOWY!L1576 -> 0 | H184: =0+ZADANIOWY!M1576 -> 0 | I184: =0+ZADANIOWY!N1576 -> 0 | J184: =0+ZADANIOWY!O1576 -> 0 | K184: 0 | L184: 0
C185: 4170 | D185: Wynagrodzenia bezosobowe | E185: =0+ZADANIOWY!J1577 -> 0 | F185: =0+ZADANIOWY!K1577 -> 0 | G185: =0+ZADANIOWY!L1577 -> 0 | H185: =0+ZADANIOWY!M1577 -> 0 | I185: =0+ZADANIOWY!N1577 -> 0 | J185: =0+ZADANIOWY!O1577 -> 0 | K185: 0 | L185: 0
C186: 4210 | D186: Zakup materiałów i wyposażenia | E186: =0+ZADANIOWY!J1578 -> 0 | F186: =0+ZADANIOWY!K1578 -> 0 | G186: =0+ZADANIOWY!L1578 -> 0 | H186: =0+ZADANIOWY!M1578 -> 0 | I186: =0+ZADANIOWY!N1578 -> 0 | J186: =0+ZADANIOWY!O1578 -> 0 | K186: 0 | L186: 0
C187: 4260 | D187: Zakup energii | E187: =0+ZADANIOWY!J1579 -> 67170 | F187: =0+ZADANIOWY!K1579 -> 0 | G187: =0+ZADANIOWY!L1579 -> 0 | H187: =0+ZADANIOWY!M1579 -> 0 | I187: =0+ZADANIOWY!N1579 -> 0 | J187: =0+ZADANIOWY!O1579 -> 0 | K187: 67170 | L187: 0 | M187: Tak
C188: 4270 | D188: Zakup usług remontowych | E188: =0+ZADANIOWY!J1580 -> 246325 | F188: =0+ZADANIOWY!K1580 -> 0 | G188: =0+ZADANIOWY!L1580 -> 0 | H188: =0+ZADANIOWY!M1580 -> 0 | I188: =0+ZADANIOWY!N1580 -> 0 | J188: =0+ZADANIOWY!O1580 -> 0 | K188: 246325 | L188: 0 | M188: Tak
C189: 4300 | D189: Zakup usług pozostałych | E189: =0+ZADANIOWY!J1581+ZADANIOWY!J1598 -> 19667 | F189: =0+ZADANIOWY!K1581+ZADANIOWY!K1598 -> 0 | G189: =0+ZADANIOWY!L1581+ZADANIOWY!L1598 -> 0 | H189: =0+ZADANIOWY!M1581+ZADANIOWY!M1598 -> 0 | I189: =0+ZADANIOWY!N1581+ZADANIOWY!N1598 -> 0 | J189: =0+ZADANIOWY!O1581+ZADANIOWY!O1598 -> 0 | K189: 19667 | L189: 0 | M189: Tak
C190: 4390 | D190: Zakup usług obejmujących wykonanie ekspertyz, analiz i opinii | E190: =0+ZADANIOWY!J1582+ZADANIOWY!J1599 -> 0 | F190: =0+ZADANIOWY!K1582+ZADANIOWY!K1599 -> 0 | G190: =0+ZADANIOWY!L1582+ZADANIOWY!L1599 -> 0 | H190: =0+ZADANIOWY!M1582+ZADANIOWY!M1599 -> 0 | I190: =0+ZADANIOWY!N1582+ZADANIOWY!N1599 -> 0 | J190: =0+ZADANIOWY!O1582+ZADANIOWY!O1599 -> 0 | K190: 0 | L190: 0
C191: 4430 | D191: Różne opłaty i składki | E191: =0+ZADANIOWY!J1583+ZADANIOWY!J1600 -> 0 | F191: =0+ZADANIOWY!K1583+ZADANIOWY!K1600 -> 0 | G191: =0+ZADANIOWY!L1583+ZADANIOWY!L1600 -> 0 | H191: =0+ZADANIOWY!M1583+ZADANIOWY!M1600 -> 0 | I191: =0+ZADANIOWY!N1583+ZADANIOWY!N1600 -> 0 | J191: =0+ZADANIOWY!O1583+ZADANIOWY!O1600 -> 0 | K191: 0 | L191: 0
C192: 4480 | D192: Podatek od nieruchomości | E192: =0+ZADANIOWY!J1584 -> 0 | F192: =0+ZADANIOWY!K1584 -> 0 | G192: =0+ZADANIOWY!L1584 -> 0 | H192: =0+ZADANIOWY!M1584 -> 0 | I192: =0+ZADANIOWY!N1584 -> 0 | J192: =0+ZADANIOWY!O1584 -> 0 | K192: 0 | L192: 0
C193: 4510 | D193: Opłaty na rzecz budżetu państwa | E193: =0+ZADANIOWY!J1585 -> 2246 | F193: =0+ZADANIOWY!K1585 -> 0 | G193: =0+ZADANIOWY!L1585 -> 0 | H193: =0+ZADANIOWY!M1585 -> 0 | I193: =0+ZADANIOWY!N1585 -> 0 | J193: =0+ZADANIOWY!O1585 -> 0 | K193: 2246 | L193: 0 | M193: Tak
C194: 4520 | D194: Opłaty na rzecz budżetów jednostek samorządu terytorialnego | E194: =0+ZADANIOWY!J1586 -> 0 | F194: =0+ZADANIOWY!K1586 -> 0 | G194: =0+ZADANIOWY!L1586 -> 0 | H194: =0+ZADANIOWY!M1586 -> 0 | I194: =0+ZADANIOWY!N1586 -> 0 | J194: =0+ZADANIOWY!O1586 -> 0 | K194: 0 | L194: 0
C195: 4530 | D195: Podatek od towarów i usług (VAT) | E195: =0 -> 0 | F195: =0 -> 0 | G195: =0 -> 0 | H195: =0 -> 0 | I195: =0 -> 0 | J195: =0 -> 0 | K195: 0 | L195: 0
C196: 4590 | D196: Kary i odszkodowania wypłacane na rzecz osób fizycznych | E196: =0 -> 0 | F196: =0 -> 0 | G196: =0 -> 0 | H196: =0 -> 0 | I196: =0 -> 0 | J196: =0 -> 0 | K196: 0 | L196: 0
C197: 4600 | D197: Kary, odszkodowania i grzywny wypłacane na rzecz osób prawnych i innych jednostek organizacyjnych | E197: =0 -> 0 | F197: =0 -> 0 | G197: =0 -> 0 | H197: =0 -> 0 | I197: =0 -> 0 | J197: =0 -> 0 | K197: 0 | L197: 0
C198: 4610 | D198: Koszty postępowania sądowego i prokuratorskiego | E198: =0 -> 0 | F198: =0 -> 0 | G198: =0 -> 0 | H198: =0 -> 0 | I198: =0 -> 0 | J198: =0 -> 0 | K198: 0 | L198: 0
C199: 6050 | D199: Wydatki inwestycyjne jednostek budżetowych | K199: 0 | L199: 0
C200: 6060 | D200: Wydatki na zakupy inwestycyjne jednostek budżetowych | K200: 0 | L200: 0
B201: 40095 | D201: Pozostała działalność | E201: =SUM(E202,E211) -> 0 | F201: 0 | G201: 0 | H201: 0 | I201: 0 | J201: 0 | K201: 0 | L201: 0
... 4299 more rows
